{"text_format":"1","workbook":"xlsx","n_sheets":7,"sheets":["faktura","чаренцаван","Граздан","Абовян","Севан","Гавар","Варденис"],"not_rendered":{"charts":0,"images":0,"macros":1,"external_links":0,"defined_names":1,"comments":0,"pivot_tables":0},"unopened":[],"bounds":{"document_bytes":16777216,"sheet_cells":100000,"rows_first":2000,"rows_last":500,"rows_between":2000,"halvings":0,"cell_chars":16384,"cell_head_chars":4096},"cells_cut":0,"cells_raw":0,"read":"whole","date_system":"1900"}

{"sheet":"faktura","index":0,"n_rows":35,"n_cols":19,"rows_kept":35,"cut":false,"hidden":false,"merged":[[12,0,13,1],[4,0,4,2],[5,0,5,2],[6,0,6,2],[9,0,9,2],[10,0,10,2],[14,6,15,6],[14,5,15,5],[14,3,15,4],[2,7,2,9],[3,7,3,9],[4,7,4,9],[5,7,5,9],[6,7,6,9],[7,7,7,9],[8,7,8,9],[9,7,9,9],[0,4,0,6],[2,0,2,2],[8,0,8,2],[12,3,13,4],[12,5,13,6],[8,3,8,6],[9,3,9,6],[10,3,10,6],[4,3,4,6],[2,3,2,5],[3,0,3,2],[19,7,19,9],[20,7,20,9],[21,7,21,9],[10,7,10,9],[0,11,0,13],[2,11,2,12],[18,7,18,9],[16,7,16,8],[4,11,4,13],[8,11,8,13],[9,11,9,13],[10,11,10,13],[14,10,15,11],[14,12,15,12],[14,13,15,13],[12,11,13,12],[12,7,13,9],[12,13,13,13],[27,7,27,9],[28,7,28,9],[29,7,29,9],[30,7,30,9],[1,0,1,2],[1,7,1,9],[17,0,17,2],[18,0,18,2],[19,0,19,2],[20,0,20,2],[21,0,21,2],[22,0,22,2],[23,0,23,2],[24,0,24,2],[25,0,25,2],[17,7,17,9],[31,7,31,9],[32,7,32,9],[40,12,40,13],[16,0,16,1],[22,7,22,9],[23,7,23,9],[24,7,24,9],[25,7,25,9],[26,7,26,9],[26,0,26,2],[27,0,27,2],[28,0,28,2],[29,0,29,2],[30,0,30,2],[31,0,31,2],[32,0,32,2]]}
[null,null,null,null,"Առաքման   գիրք   25/17771",null,null,null,null,null,null,{"$f":"E1","v":"Առաքման   գիրք   25/17771"}]
["менеджер",null,null,null,null,null,null,{"$f":"A2","v":"менеджер"}]
[{"$f":"чаренцаван!C4","v":"Արսեն  Կիրակոսյան"},null,null,"Հաշիվ  ֆակտուրա  N",null,null,2,"Արսեն  Կիրակոսյան",null,null,null,{"$f":"D3","v":"Հաշիվ  ֆակտուրա  N"},null,{"$f":"G3","v":2}]
["Կոտայքի   մարզ   ք.  Աբովյան",null,null,null,null,null,null,"Կոտայքի   մարզ   ք.  Աբովյան"]
["Կոլխոզնիկների   1",null,null,{"$f":"DATE(YEAR(TODAY()),MONTH(F15),DAY(F15))","v":"2015-01-20"},null,null,null,"Կոլխոզնիկների   1",null,null,null,{"$f":"DATE(YEAR(TODAY()),MONTH(M15),DAY(M15))","v":"2015-01-20"}]
["ՀՎՀՀ  43070372",null,null,null,null,null,null,"ՀՎՀՀ  43070372"]
["Առաքման  կայարանը   ՀՀ   տարածք",null,null,null,"Պահեստ","Գործառության   N","Ծածկագիր","Առաքման  կայարանը   ՀՀ   տարածք",null,null,null,"Պահեստ","Գործառության   N","Ծածկագիր"]
[null,null,null,null,null,null,null,null,null,null,null,null,null,null,null,null,null,null,2]
["Վճարողը   և  նրա   տվյալները",null,null,{"$f":"INDIRECT(\"чаренцаван!B\" & S8+5)","v":"Ք.Չարենցավան  3-րդ  թաղ. 38շ."},null,null,null,{"$f":"A9","v":"Վճարողը   և  նրա   տվյալները"},null,null,null,{"$f":"D9","v":"Ք.Չարենցավան  3-րդ  թաղ. 38շ."},null,null,null,null,null,null,"список  городов"]
["Մատակարարման   միջոց՝    ",null,null,{"$f":"INDIRECT(\"чаренцаван!C\" & S8+5)","v":"Ա.Ձ.   Մաթևոսյան   Արմեն"},null,null,null,{"$f":"A10","v":"Մատակարարման   միջոց՝    "},null,null,null,{"$f":"D10","v":"Ա.Ձ.   Մաթևոսյան   Արմեն"}]
[" ֆորդ    տրանզիտ   33  sv 649",null,null,{"$f":"чаренцаван!D5&INDIRECT(\"чаренцаван!D\" & S8+5)","v":"ՀՎՀՀ35658975"},null,null,null,{"$f":"A11","v":" ֆորդ    տրանզիտ   33  sv 649"},null,null,null,{"$f":"D11","v":"ՀՎՀՀ35658975"},null,null,null,null,null,null,"Чаренцаван"]
[null,null,null,null,null,null,null,null,null,null,null,null,null,null,null,null,null,null,"Граздан"]
["Պայմանագրի-պատվերը",null,null,"Տեղերի   քանակը",null,"Կշիռ",null,"Պայմանագրի-պատվերը",null,null,null,"Տեղերի   քանակը",null,"Կշիռ",null,null,null,null,"Абовян"]
[null,null,null,null,null,null,null,null,null,null,null,null,null,null,null,null,null,null,"Севан"]
[null,null,null,"Բարձման  ամսաթիվը",null,{"$f":"TODAY()","v":"2015-01-20"},"Անդորրագիր   N",null,null,null,"Բարձման  ամսաթիվը",null,{"$f":"TODAY()","v":"2015-01-20"},"Անդորրագիր   N",null,null,{"$f":"SUMIFS(чаренцаван!E6:E18,чаренцаван!B6:B18,D9,чаренцаван!C6:C18,D10)","v":0},null,"Гавар"]
["Լրացուցիչ   պայմաններ",null,null,null,null,null,null,"Լրացուցիչ   պայմաններ",null,null,null,null,null,null,null,null,{"$f":"SUMIFS(чаренцаван!E6:E18,чаренцаван!C6:C18,A19)+INDEX(чаренцаван!$E$6:$I$6,MATCH(1,--(чаренцаван!$E$3:$I$3<>\"\"),0))","v":8},null,"Варденис"]
["Անվանումը",null,null,"Չափ.մվ.","кол.","цена","Գումարը","Անվանումը",null,null,"Չափ.մվ.","кол.","цена","Գումարը",null,null,{"$f":"INDEX(чаренцаван!$E$6:$I$6,MATCH(1,--(чаренцаван!$E$3:$I$3<>\"\"),0))","v":8}]
[{"$f":"INDEX(чаренцаван!$E$3:$I$3,MATCH(1,--(чаренцаван!$E$7:$I$7<>\"\"),0))","v":"лим-0,5"},null,null,"հատ",{"$f":"INDIRECT(\"чаренцаван!E\" & S8+5)","v":0},{"$f":"IF(E18:E18>0,чаренцаван!E5,0)","v":0},{"$f":"E18*F18","v":0},{"$f":"A18","v":"лим-0,5"},null,null,"հատ",{"$f":"E18","v":0},{"$f":"F18","v":0},{"$f":"L18*M18","v":0}]
[{"$f":"INDEX(чаренцаван!$E$3:$I$3,MATCH(1,--(чаренцаван!$E$7:$I$7<>\"\"),0))","v":"лим-0,5"},null,null,"հատ",{"$f":"INDIRECT(\"чаренцаван!f\" & S8+5)","v":24},{"$f":"IF(E19:E19>0,чаренцаван!F5,0)","v":60},{"$f":"E19*F19","v":1440},{"$f":"A19","v":"лим-0,5"},null,null,"հատ",{"$f":"E19","v":24},{"$f":"F19","v":60},{"$f":"L19*M19","v":1440}]
[{"$f":"INDEX(чаренцаван!$E$3:$I$3,MATCH(1,--(чаренцаван!$E$7:$I$7<>\"\"),0))","v":"лим-0,5"},null,null,"հատ",{"$f":"INDIRECT(\"чаренцаван!G\" & S8+5)","v":0},{"$f":"IF(E20:E20>0,чаренцаван!G5,0)","v":0},{"$f":"E20*F20","v":0},"лим-0,5",null,null,"հատ",{"$f":"E20","v":0},{"$f":"F20","v":0},{"$f":"L20*M20","v":0}]
[{"$f":"INDEX(чаренцаван!$E$3:$I$3,MATCH(1,--(чаренцаван!$E$6:$I$6<>\"\"),0))","v":"лим-1,5"},null,null,"հատ",{"$f":"INDIRECT(\"чаренцаван!H\" & S8+5)","v":0},{"$f":"IF(E21:E21>0,чаренцаван!H5,0)","v":0},{"$f":"E21*F21","v":0},"лим-1,5",null,null,"հատ",{"$f":"E21","v":0},{"$f":"F21","v":0},{"$f":"L21*M21","v":0}]
[{"$f":"INDEX(чаренцаван!$E$3:$I$3,MATCH(1,--(чаренцаван!$E$6:$I$6<>\"\"),0))","v":"лим-1,5"},null,null,"հատ",{"$f":"INDIRECT(\"чаренцаван!i\" & E4+5)","v":125},{"$f":"IF(E22:E22>0,чаренцаван!I5,0)","v":125},{"$f":"E22*F22","v":15625},"лим-1,5",null,null,"հատ",{"$f":"E22","v":125},{"$f":"F22","v":125},{"$f":"L22*M22","v":15625}]
[{"$f":"INDEX(чаренцаван!$E$3:$I$3,MATCH(1,--(чаренцаван!$E$6:$I$6<>\"\"),0))","v":"лим-1,5"},null,null,"հատ",{"$f":"INDIRECT(\"чаренцаван!j\" & E4+5)","v":0},{"$f":"IF(E23:E23>0,чаренцаван!J5,0)","v":0},{"$f":"E23*F23","v":0},"лим-1,5",null,null,"հատ",{"$f":"E23","v":0},{"$f":"F23","v":0},{"$f":"L23*M23","v":0}]
[{"$f":"INDEX(чаренцаван!$E$3:$I$3,MATCH(1,--(чаренцаван!$E$6:$I$6<>\"\"),0))","v":"лим-1,5"},null,null,"հատ",{"$f":"INDIRECT(\"чаренцаван!k\" & E4+5)","v":0},{"$f":"IF(E24:E24>0,чаренцаван!K5,0)","v":0},{"$f":"E24*F24","v":0},"лим-1,5",null,null,"հատ",{"$f":"E24","v":0},{"$f":"F24","v":0},{"$f":"L24*M24","v":0}]
[{"$f":"INDEX(чаренцаван!$E$3:$I$3,MATCH(1,--(чаренцаван!$E$6:$I$6<>\"\"),0))","v":"лим-1,5"},null,null,"հատ",{"$f":"INDIRECT(\"чаренцаван!l\" & E4+5)","v":0},{"$f":"IF(E25:E25>0,чаренцаван!L5,0)","v":0},{"$f":"E25*F25","v":0},"лим-1,5",null,null,"հատ",{"$f":"E25","v":0},{"$f":"F25","v":0},{"$f":"L25*M25","v":0}]
[{"$f":"INDEX(чаренцаван!$E$3:$I$3,MATCH(1,--(чаренцаван!$E$6:$I$6<>\"\"),0))","v":"лим-1,5"},null,null,"հատ",{"$f":"INDIRECT(\"чаренцаван!m\" & E8+5)","v":0},{"$f":"IF(E26:E26>0,чаренцаван!M5,0)","v":0},{"$f":"E26*F26","v":0},"лим-1,5",null,null,"հատ",{"$f":"E26","v":0},{"$f":"F26","v":0},{"$f":"L26*M26","v":0}]
[{"$f":"INDEX(чаренцаван!$E$3:$I$3,MATCH(1,--(чаренцаван!$E$6:$I$6<>\"\"),0))","v":"лим-1,5"},null,null,"հատ",{"$f":"INDIRECT(\"чаренцаван!n\" & E8+5)","v":0},{"$f":"IF(E27:E27>0,чаренцаван!N5,0)","v":0},{"$f":"E27*F27","v":0},"лим-1,5",null,null,"հատ",{"$f":"E27","v":0},{"$f":"F27","v":0},{"$f":"L27*M27","v":0}]
[{"$f":"INDEX(чаренцаван!$E$3:$I$3,MATCH(1,--(чаренцаван!$E$6:$I$6<>\"\"),0))","v":"лим-1,5"},null,null,"հատ",{"$f":"INDIRECT(\"чаренцаван!o\" & E8+5)","v":0},{"$f":"IF(E28:E28>0,чаренцаван!O5,0)","v":0},{"$f":"E28*F28","v":0},"лим-1,5",null,null,"հատ",{"$f":"E28","v":0},{"$f":"F28","v":0},{"$f":"L28*M28","v":0}]
[{"$f":"INDEX(чаренцаван!$E$3:$I$3,MATCH(1,--(чаренцаван!$E$6:$I$6<>\"\"),0))","v":"лим-1,5"},null,null,"հատ",{"$f":"INDIRECT(\"чаренцаван!p\" & E8+5)","v":0},{"$f":"IF(E29:E29>0,чаренцаван!P5,0)","v":0},{"$f":"E29*F29","v":0},"лим-1,5",null,null,"հատ",{"$f":"E29","v":0},{"$f":"F29","v":0},{"$f":"L29*M29","v":0}]
[{"$f":"INDEX(чаренцаван!$E$3:$I$3,MATCH(1,--(чаренцаван!$E$6:$I$6<>\"\"),0))","v":"лим-1,5"},null,null,"հատ",{"$f":"INDIRECT(\"чаренцаван!q\" & E12+5)","v":0},{"$f":"IF(E30:E30>0,чаренцаван!Q5,0)","v":0},{"$f":"E30*F30","v":0},"лим-1,5",null,null,"հատ",{"$f":"E30","v":0},{"$f":"F30","v":0},{"$f":"L30*M30","v":0}]
[{"$f":"INDEX(чаренцаван!$E$3:$I$3,MATCH(1,--(чаренцаван!$E$6:$I$6<>\"\"),0))","v":"лим-1,5"},null,null,"հատ",{"$f":"INDIRECT(\"чаренцаван!r\" & E12+5)","v":0},{"$f":"IF(E31:E31>0,чаренцаван!R5,0)","v":0},{"$f":"E31*F31","v":0},"лим-1,5",null,null,"հատ",{"$f":"E31","v":0},{"$f":"F31","v":0},{"$f":"L31*M31","v":0}]
[{"$f":"INDEX(чаренцаван!$E$3:$I$3,MATCH(1,--(чаренцаван!$E$6:$I$6<>\"\"),0))","v":"лим-1,5"},null,null,"հատ",{"$f":"INDIRECT(\"чаренцаван!s\" & E12+5)","v":0},{"$f":"IF(E32:E32>0,чаренцаван!S5,0)","v":0},{"$f":"E32*F32","v":0},"лим-1,5",null,null,"հատ",{"$f":"E32","v":0},{"$f":"F32","v":0},{"$f":"L32*M32","v":0}]
[{"$f":"INDEX(чаренцаван!$E$3:$I$3,MATCH(1,--(чаренцаван!$E$6:$I$6<>\"\"),0))","v":"лим-1,5"},null,null,"հատ",{"$f":"INDIRECT(\"чаренцаван!s\" & E13+5)","v":0},{"$f":"IF(E33:E33>0,чаренцаван!S6,0)","v":0},{"$f":"E33*F33","v":0},"лим-1,5",null,null,"հատ",{"$f":"E33","v":0},{"$f":"F33","v":0},{"$f":"L33*M33","v":0}]
["ԸՆԴՀԱՆՈՒՐԸ",null,null,null,null,null,{"$f":"SUM(G18:G27)","v":17065},"ԸՆԴՀԱՆՈՒՐԸ",null,null,null,null,null,{"$f":"SUM(N19:N28)","v":17065}]
["Հանձնեց՝   Հ.Ղամբարյան",null,null,"Ընդհունեց՝",null,null,null,"Հանձնեց՝   Հ.Ղամբարյան",null,null,"Ընդհունեց՝"]

{"sheet":"чаренцаван","index":1,"n_rows":69,"n_cols":32,"rows_kept":69,"cut":false,"hidden":false,"merged":[[68,1,78,10]]}
[]
[]
[null,"адресс","имя  фамиля",null,"лим-1,5","лим-0,5","тан-0,5","натур-сок  2","натур-сок  0.25","халодны  кофе","малоты  кофе  кг.","малоты  кофе  Джови  шт.","малоты  кофе  Лидер  шт.","куруруз","чипси  80  гр.","чипси  200  гр.","Ади-Буди","Соска","Бочка","Ведро"]
[null,"Чаренцаван","Արսեն  Կիրակոսյան",null,null,null,null,null,null,null,null,null,null,null,null,null,null,null,null,null,"скидка","сумма"]
[null,null,null,"ՀՎՀՀ",80,60,80,500,125]
[1,"Ք.Չարենցավան  3-րդ  թաղ. 26շ.","Ա.Ձ.   Մաթևոսյան   Արթուր",42256545,8,null,null,6,10,null,null,null,null,null,null,null,null,null,null,null,2000,{"$f":"SUMPRODUCT($E$5:$T$5,E6:T6)-U6","v":2890}]
[2,"Ք.Չարենցավան  3-րդ  թաղ. 38շ.","Ա.Ձ.   Մաթևոսյան   Արմեն",35658975,null,24,null,null,null,null,null,null,null,null,null,null,null,null,null,null,2000,{"$f":"SUMPRODUCT($E$5:$T$5,E7:T7)-U7","v":-560}]
[3,"Ք.Չարենցավան  3-րդ  թաղ. 40շ.","Ա.Ձ.   Սարգսյան  Կարեն",25854565,72,48,24,8,24,null,null,null,null,null,null,null,null,null,null,null,2000,15560]
[4,"Ք.Չարենցավան  4-րդ  թաղ. 2շ.","Ա.Ձ.   Կարապետյան  Մարի",85456523,null,24,24,8,24,null,null,null,null,null,null,null,null,null,null,null,2000,8360]
[5,"Ք.Չարենցավան  4-րդ  թաղ. 20շ.","Ա.Ձ.   Մաթևոսյան   Արթուր",77255533,60,null,null,16,24,null,null,null,null,null,null,null,null,null,null,null,2000,13800]
[6,"Ք.Չարենցավան  4-րդ  թաղ. 30շ.","Ա.Ձ.   Մաթևոսյան   Արթուր",89235085,48,24,24,8,60,null,null,null,null,null,null,null,null,null,null,null,2000,16700]
[7,"Ք.Չարենցավան  4-րդ  թաղ. 36շ.","abo",101214637.8,50,24,24,null,24,null,null,null,null,null,null,null,null,null,null,null,2000,8360]
[8,"Ք.Չարենցավան  4-րդ  թաղ. 45շ.","kbo",113194190.2,120,24,60,8,48,null,null,null,null,null,null,null,null,null,null,null,2000,23840]
[9,"Ք.Չարենցավան  2-րդ  թաղ. 16շ.","mbo",125173742.59999999,null,20,null,20,70,null,null,null,null,null,null,null,null,null,null,null,2000,17950]
[10,"Ք.Չարենցավան  2-րդ  թաղ. 20շ.","Ա.Ձ.   Մաթևոսյան   Արթուր",137153295,72,48,24,20,24,null,null,null,null,null,null,null,null,null,null,null,2000,21560]
[11,"Ք.Չարենցավան  2-րդ  թաղ. 26շ.","Ա.Ձ.   Մաթևոսյան   Արթուր",149132847.40000001,60,24,120,8,60,null,null,null,null,null,null,null,null,null,null,null,2000,25340]
[12,"Ք.Չարենցավան  2-րդ  թաղ. 46շ.","Ա.Ձ.   Մաթևոսյան   Արթուր",161112399.80000001,48,60,24,20,24,null,null,null,null,null,null,null,null,null,null,null,2000,20360]
[13,"Ք.Չարենցավան  2-րդ  թաղ. 48շ.","Ա.Ձ.   Մաթևոսյան   Արթուր",173091952.19999999,60,24,24,8,24,null,null,null,null,null,null,null,null,null,null,null,2000,13160]
[14,"Ք.Չարենցավան  2-րդ  թաղ. 48շ.","Ա.Ձ.   Մաթևոսյան   Արթուր",173091952.19999999,60,24,24,8,24,null,null,null,null,null,null,null,null,null,null,null,2000,{"$f":"SUMPRODUCT($E$5:$T$5,E19:T19)-U19","v":13160}]
[15,"Ք.Չարենցավան  2-րդ  թաղ. 48շ.","Ա.Ձ.   Մաթևոսյան   Արթուր",173091952.19999999,60,24,24,8,24,null,null,null,null,null,null,null,null,null,null,null,2000,13160]
[16,"Ք.Չարենցավան  2-րդ  թաղ. 48շ.","Ա.Ձ.   Մաթևոսյան   Արթուր",173091952.19999999,60,24,24,8,24,null,null,null,null,null,null,null,null,null,null,null,2000,13160]
[17,"Ք.Չարենցավան  2-րդ  թաղ. 48շ.","Ա.Ձ.   Մաթևոսյան   Արթուր",173091952.19999999,60,24,24,8,24,null,null,null,null,null,null,null,null,null,null,null,2000,13160]
[18,"Ք.Չարենցավան  2-րդ  թաղ. 48շ.","Ա.Ձ.   Մաթևոսյան   Արթուր",173091952.19999999,60,24,24,8,24,null,null,null,null,null,null,null,null,null,null,null,2000,13160]
[19,"Ք.Չարենցավան  2-րդ  թաղ. 48շ.","Ա.Ձ.   Մաթևոսյան   Արթուր",173091952.19999999,60,24,24,8,24,null,null,null,null,null,null,null,null,null,null,null,2000,13160,null,null,null,null,null,null,{"$f":"LOOKUP(\"\",E6:I6&\"\",E3:I3)","v":"тан-0,5"},"kbo",{"$f":"SUMIFS(E6:E18,C6:C18,AD24)","v":120},{"$f":"SUM(чаренцаван:Варденис!E:E)","v":20988}]
[20,"Ք.Չարենցավան  2-րդ  թաղ. 48շ.","Ա.Ձ.   Մաթևոսյան   Արթուր",173091952.19999999,60,24,24,8,24,null,null,null,null,null,null,null,null,null,null,null,2000,13160]
[21,"Ք.Չարենցավան  2-րդ  թաղ. 48շ.","Ա.Ձ.   Մաթևոսյան   Արթուր",173091952.19999999,60,24,24,8,24,null,null,null,null,null,null,null,null,null,null,null,2000,13160]
[22,"Ք.Չարենցավան  2-րդ  թաղ. 48շ.","Ա.Ձ.   Մաթևոսյան   Արթուր",173091952.19999999,60,24,24,8,24,null,null,null,null,null,null,null,null,null,null,null,2000,13160]
[23,"Ք.Չարենցավան  2-րդ  թաղ. 48շ.","Ա.Ձ.   Մաթևոսյան   Արթուր",173091952.19999999,60,24,24,8,24,null,null,null,null,null,null,null,null,null,null,null,2000,13160]
[24,"Ք.Չարենցավան  2-րդ  թաղ. 48շ.","Ա.Ձ.   Մաթևոսյան   Արթուր",173091952.19999999,60,24,24,8,24,null,null,null,null,null,null,null,null,null,null,null,2000,13160]
[25,"Ք.Չարենցավան  2-րդ  թաղ. 48շ.","Ա.Ձ.   Մաթևոսյան   Արթուր",173091952.19999999,60,24,24,8,24,null,null,null,null,null,null,null,null,null,null,null,2000,13160]
[26,"Ք.Չարենցավան  2-րդ  թաղ. 48շ.","Ա.Ձ.   Մաթևոսյան   Արթուր",173091952.19999999,60,24,24,8,24,null,null,null,null,null,null,null,null,null,null,null,2000,13160]
[27,"Ք.Չարենցավան  2-րդ  թաղ. 48շ.","Ա.Ձ.   Մաթևոսյան   Արթուր",173091952.19999999,60,24,24,8,24,null,null,null,null,null,null,null,null,null,null,null,2000,13160]
[28,"Ք.Չարենցավան  2-րդ  թաղ. 48շ.","Ա.Ձ.   Մաթևոսյան   Արթուր",173091952.19999999,60,24,24,8,24,null,null,null,null,null,null,null,null,null,null,null,2000,13160]
[29,"Ք.Չարենցավան  2-րդ  թաղ. 48շ.","Ա.Ձ.   Մաթևոսյան   Արթուր",173091952.19999999,60,24,24,8,24,null,null,null,null,null,null,null,null,null,null,null,2000,13160]
[30,"Ք.Չարենցավան  2-րդ  թաղ. 48շ.","Ա.Ձ.   Մաթևոսյան   Արթուր",173091952.19999999,60,24,24,8,24,null,null,null,null,null,null,null,null,null,null,null,2000,13160]
[31,"Ք.Չարենցավան  2-րդ  թաղ. 48շ.","Ա.Ձ.   Մաթևոսյան   Արթուր",173091952.19999999,60,24,24,8,24,null,null,null,null,null,null,null,null,null,null,null,2000,13160]
[32,"Ք.Չարենցավան  2-րդ  թաղ. 48շ.","Ա.Ձ.   Մաթևոսյան   Արթուր",173091952.19999999,60,24,24,8,24,null,null,null,null,null,null,null,null,null,null,null,2000,13160]
[33,"Ք.Չարենցավան  2-րդ  թաղ. 48շ.","Ա.Ձ.   Մաթևոսյան   Արթուր",173091952.19999999,60,24,24,8,24,null,null,null,null,null,null,null,null,null,null,null,2000,13160]
[34,"Ք.Չարենցավան  2-րդ  թաղ. 48շ.","Ա.Ձ.   Մաթևոսյան   Արթուր",173091952.19999999,60,24,24,8,24,null,null,null,null,null,null,null,null,null,null,null,2000,13160]
[35,"Ք.Չարենցավան  2-րդ  թաղ. 48շ.","Ա.Ձ.   Մաթևոսյան   Արթուր",173091952.19999999,60,24,24,8,24,null,null,null,null,null,null,null,null,null,null,null,2000,13160]
[36,"Ք.Չարենցավան  2-րդ  թաղ. 48շ.","Ա.Ձ.   Մաթևոսյան   Արթուր",173091952.19999999,60,24,24,8,24,null,null,null,null,null,null,null,null,null,null,null,2000,13160]
[37,"Ք.Չարենցավան  2-րդ  թաղ. 48շ.","Ա.Ձ.   Մաթևոսյան   Արթուր",173091952.19999999,60,24,24,8,24,null,null,null,null,null,null,null,null,null,null,null,2000,13160]
[38,"Ք.Չարենցավան  2-րդ  թաղ. 48շ.","Ա.Ձ.   Մաթևոսյան   Արթուր",173091952.19999999,60,24,24,8,24,null,null,null,null,null,null,null,null,null,null,null,2000,13160]
[39,"Ք.Չարենցավան  2-րդ  թաղ. 48շ.","Ա.Ձ.   Մաթևոսյան   Արթուր",173091952.19999999,60,24,24,8,24,null,null,null,null,null,null,null,null,null,null,null,2000,13160]
[40,"Ք.Չարենցավան  2-րդ  թաղ. 48շ.","Ա.Ձ.   Մաթևոսյան   Արթուր",173091952.19999999,60,24,24,8,24,null,null,null,null,null,null,null,null,null,null,null,2000,13160]
[41,"Ք.Չարենցավան  2-րդ  թաղ. 48շ.","Ա.Ձ.   Մաթևոսյան   Արթուր",173091952.19999999,60,24,24,8,24,null,null,null,null,null,null,null,null,null,null,null,2000,13160]
[42,"Ք.Չարենցավան  2-րդ  թաղ. 48շ.","Ա.Ձ.   Մաթևոսյան   Արթուր",173091952.19999999,60,24,24,8,24,null,null,null,null,null,null,null,null,null,null,null,2000,13160]
[43,"Ք.Չարենցավան  2-րդ  թաղ. 48շ.","Ա.Ձ.   Մաթևոսյան   Արթուր",173091952.19999999,60,24,24,8,24,null,null,null,null,null,null,null,null,null,null,null,2000,13160]
[44,"Ք.Չարենցավան  2-րդ  թաղ. 48շ.","Ա.Ձ.   Մաթևոսյան   Արթուր",173091952.19999999,60,24,24,8,24,null,null,null,null,null,null,null,null,null,null,null,2000,13160]
[45,"Ք.Չարենցավան  2-րդ  թաղ. 48շ.","Ա.Ձ.   Մաթևոսյան   Արթուր",173091952.19999999,60,24,24,8,24,null,null,null,null,null,null,null,null,null,null,null,2000,13160]
[46,"Ք.Չարենցավան  2-րդ  թաղ. 48շ.","Ա.Ձ.   Մաթևոսյան   Արթուր",173091952.19999999,60,24,24,8,24,null,null,null,null,null,null,null,null,null,null,null,2000,13160]
[47,"Ք.Չարենցավան  2-րդ  թաղ. 48շ.","Ա.Ձ.   Մաթևոսյան   Արթուր",173091952.19999999,60,24,24,8,24,null,null,null,null,null,null,null,null,null,null,null,2000,13160]
[48,"Ք.Չարենցավան  2-րդ  թաղ. 48շ.","Ա.Ձ.   Մաթևոսյան   Արթուր",173091952.19999999,60,24,24,8,24,null,null,null,null,null,null,null,null,null,null,null,2000,13160]
[49,"Ք.Չարենցավան  2-րդ  թաղ. 48շ.","Ա.Ձ.   Մաթևոսյան   Արթուր",173091952.19999999,60,24,24,8,24,null,null,null,null,null,null,null,null,null,null,null,2000,13160]
[50,"Ք.Չարենցավան  2-րդ  թաղ. 48շ.","Ա.Ձ.   Մաթևոսյան   Արթուր",173091952.19999999,60,24,24,8,24,null,null,null,null,null,null,null,null,null,null,null,2000,13160]
[51,"Ք.Չարենցավան  2-րդ  թաղ. 48շ.","Ա.Ձ.   Մաթևոսյան   Արթուր",173091952.19999999,60,24,24,8,24,null,null,null,null,null,null,null,null,null,null,null,2000,13160]
[52,"Ք.Չարենցավան  2-րդ  թաղ. 48շ.","Ա.Ձ.   Մաթևոսյան   Արթուր",173091952.19999999,60,24,24,8,24,null,null,null,null,null,null,null,null,null,null,null,2000,13160]
[53,"Ք.Չարենցավան  2-րդ  թաղ. 48շ.","Ա.Ձ.   Մաթևոսյան   Արթուր",173091952.19999999,60,24,24,8,24,null,null,null,null,null,null,null,null,null,null,null,2000,13160]
[54,"Ք.Չարենցավան  2-րդ  թաղ. 48շ.","Ա.Ձ.   Մաթևոսյան   Արթուր",173091952.19999999,60,24,24,8,24,null,null,null,null,null,null,null,null,null,null,null,2000,13160]
[55,"Ք.Չարենցավան  2-րդ  թաղ. 48շ.","Ա.Ձ.   Մաթևոսյան   Արթուր",173091952.19999999,60,24,24,8,24,null,null,null,null,null,null,null,null,null,null,null,2000,13160]
[56,"Ք.Չարենցավան  2-րդ  թաղ. 48շ.","Ա.Ձ.   Մաթևոսյան   Արթուր",173091952.19999999,60,24,24,8,24,null,null,null,null,null,null,null,null,null,null,null,2000,13160]
[57,"Ք.Չարենցավան  2-րդ  թաղ. 48շ.","Ա.Ձ.   Մաթևոսյան   Արթուր",173091952.19999999,60,24,24,8,24,null,null,null,null,null,null,null,null,null,null,null,2000,13160]
[58,"Ք.Չարենցավան  2-րդ  թաղ. 48շ.","Ա.Ձ.   Մաթևոսյան   Արթուր",173091952.19999999,60,24,24,8,24,null,null,null,null,null,null,null,null,null,null,null,2000,13160]
[59,"Ք.Չարենցավան  2-րդ  թաղ. 48շ.","Ա.Ձ.   Մաթևոսյան   Արթուր",173091952.19999999,60,24,24,8,24,null,null,null,null,null,null,null,null,null,null,null,2000,13160]
[60,"Ք.Չարենցավան  2-րդ  թաղ. 48շ.","Ա.Ձ.   Մաթևոսյան   Արթուր",173091952.19999999,60,24,24,8,24,null,null,null,null,null,null,null,null,null,null,null,2000,13160]
[]
[]
[]
[null,"Добры  день  всем,  прошу  помощи.  у  меня  кажется  не  выполнимая  задача   дело в  копировки ,нужен  макрос  который  бы   первый- из  любого  активного  листа   а  они  у  нас  6   копировать  С4  и  вставлять  в  листе  Фактура   А3 ,второе - из  активного   листа   активного    строка   (B,C,D)  копировать  и  вставлять   в  листе  Фактура   (D9,D10,D11)  Трети-  нужно  чтобы  найти  в  активного  строке  первую  непустую  ячейку  например  тот  желтую  строку  первый  F14  это   количество  закупленного  товара  оно  будет  вставляется  у  нас  в  листе  фактура  Е18  а  F3  будет   вставляется  в  Фактуре    А18,  второе  непустую  это  у  нас  H14   будет  в  фактуре   Е19,  а  H3  будет  в  фактуре  А19   и.т.л   до  последнего  непустую"]

{"sheet":"Граздан","index":2,"n_rows":65,"n_cols":32,"rows_kept":65,"cut":false,"hidden":false,"merged":[]}
[]
[]
[null,"адресс","имя  фамиля",null,"лим-1,5","лим-0,5","тан-0,5","натур-сок  2","натур-сок  0.25","халодны  кофе","малоты  кофе  кг.","малоты  кофе  Джови  шт.","малоты  кофе  Лидер  шт.","куруруз","чипси  80  гр.","чипси  200  гр.","Ади-Буди","Соска","Бочка","Ведро"]
[null,"Граздан","Արսեն  Կիրակոսյան",null,null,null,null,null,null,null,null,null,null,null,null,null,null,null,null,null,"скидка","сумма"]
[null,null,null,"ՀՎՀՀ",80,60,80,500,125]
[1,"Ք.Հրազդան  Միկրո 26շ.","Ա.Ձ.   Մաթևոսյան   Արթուր",42256545,8,null,null,6,10,null,null,null,null,null,null,null,null,null,null,null,2000,{"$f":"SUMPRODUCT($E$5:$T$5,E6:T6)-U6","v":2890}]
[2,"Ք.Հրազդան  Միկրո 38շ.","Ա.Ձ.   Մաթևոսյան   Արմեն",35658975,null,24,null,80,null,null,null,null,null,null,null,null,null,null,null,null,2000,{"$f":"SUMPRODUCT($E$5:$T$5,E7:T7)-U7","v":39440}]
[3,"Ք.Հրազդան  Միկրո 40շ.","Ա.Ձ.   Սարգսյան  Կարեն",25854565,72,48,24,8,24,null,null,null,null,null,null,null,null,null,null,null,2000,{"$f":"SUMPRODUCT($E$5:$T$5,E8:T8)-U8","v":15560}]
[4,"Ք.Հրազդան  4-Միկրո 2շ.","Ա.Ձ.   Կարապետյան  Մարի",85456523,null,24,24,8,24,null,null,null,null,null,null,null,null,null,null,null,2000,8360]
[5,"Ք.Հրազդան  4-Միկրո 20շ.","Ա.Ձ.   Մաթևոսյան   Արթուր",77255533,60,null,null,16,24,null,null,null,null,null,null,null,null,null,null,null,2000,13800]
[6,"Ք.Հրազդան  4-Միկրո 30շ.","Ա.Ձ.   Մաթևոսյան   Արթուր",89235085,48,24,24,8,60,null,null,null,null,null,null,null,null,null,null,null,2000,16700]
[7,"Ք.Հրազդան  4-Միկրո 36շ.","abo",101214637.8,50,24,24,null,24,null,null,null,null,null,null,null,null,null,null,null,2000,8360]
[8,"Ք.Հրազդան  4-Միկրո 45շ.","kbo",113194190.2,120,24,60,8,48,null,null,null,null,null,null,null,null,null,null,null,2000,23840]
[9,"Ք.Հրազդան  2-Միկրո 16շ.","mbo",125173742.59999999,null,null,null,20,70,null,null,null,null,null,null,null,null,null,null,null,2000,16750]
[10,"Ք.Հրազդան  2-Միկրո 20շ.","Ա.Ձ.   Մաթևոսյան   Արթուր",137153295,72,48,24,20,24,null,null,null,null,null,null,null,null,null,null,null,2000,21560]
[11,"Ք.Հրազդան  2-Միկրո 26շ.","Ա.Ձ.   Մաթևոսյան   Արթուր",149132847.40000001,60,24,120,8,60,null,null,null,null,null,null,null,null,null,null,null,2000,25340]
[12,"Ք.Հրազդան  2-Միկրո 46շ.","Ա.Ձ.   Մաթևոսյան   Արթուր",161112399.80000001,48,60,24,20,24,null,null,null,null,null,null,null,null,null,null,null,2000,20360]
[13,"Ք.Հրազդան  2-Միկրո 48շ.","Ա.Ձ.   Մաթևոսյան   Արթուր",173091952.19999999,60,24,24,8,24,null,null,null,null,null,null,null,null,null,null,null,2000,13160]
[14,"Ք.Հրազդան  2-Միկրո 48շ.","Ա.Ձ.   Մաթևոսյան   Արթուր",173091952.19999999,60,24,24,8,24,null,null,null,null,null,null,null,null,null,null,null,2000,13160]
[15,"Ք.Հրազդան  2-Միկրո 48շ.","Ա.Ձ.   Մաթևոսյան   Արթուր",173091952.19999999,60,24,24,8,24,null,null,null,null,null,null,null,null,null,null,null,2000,13160]
[16,"Ք.Հրազդան  2-Միկրո 48շ.","Ա.Ձ.   Մաթևոսյան   Արթուր",173091952.19999999,60,24,24,8,24,null,null,null,null,null,null,null,null,null,null,null,2000,13160]
[17,"Ք.Հրազդան  2-Միկրո 48շ.","Ա.Ձ.   Մաթևոսյան   Արթուր",173091952.19999999,60,24,24,8,24,null,null,null,null,null,null,null,null,null,null,null,2000,13160]
[18,"Ք.Հրազդան  2-Միկրո 48շ.","Ա.Ձ.   Մաթևոսյան   Արթուր",173091952.19999999,60,24,24,8,24,null,null,null,null,null,null,null,null,null,null,null,2000,13160]
[19,"Ք.Հրազդան  2-Միկրո 48շ.","Ա.Ձ.   Մաթևոսյան   Արթուր",173091952.19999999,60,24,24,8,24,null,null,null,null,null,null,null,null,null,null,null,2000,13160,null,null,null,null,null,null,"тан-0,5","kbo",120,10724]
[20,"Ք.Հրազդան  2-Միկրո 48շ.","Ա.Ձ.   Մաթևոսյան   Արթուր",173091952.19999999,60,24,24,8,24,null,null,null,null,null,null,null,null,null,null,null,2000,13160]
[21,"Ք.Հրազդան  2-Միկրո 48շ.","Ա.Ձ.   Մաթևոսյան   Արթուր",173091952.19999999,60,24,24,8,24,null,null,null,null,null,null,null,null,null,null,null,2000,13160]
[22,"Ք.Հրազդան  2-Միկրո 48շ.","Ա.Ձ.   Մաթևոսյան   Արթուր",173091952.19999999,60,24,24,8,24,null,null,null,null,null,null,null,null,null,null,null,2000,13160]
[23,"Ք.Հրազդան  2-Միկրո 48շ.","Ա.Ձ.   Մաթևոսյան   Արթուր",173091952.19999999,60,24,24,8,24,null,null,null,null,null,null,null,null,null,null,null,2000,13160]
[24,"Ք.Հրազդան  2-Միկրո 48շ.","Ա.Ձ.   Մաթևոսյան   Արթուր",173091952.19999999,60,24,24,8,24,null,null,null,null,null,null,null,null,null,null,null,2000,13160]
[25,"Ք.Հրազդան  2-Միկրո 48շ.","Ա.Ձ.   Մաթևոսյան   Արթուր",173091952.19999999,60,24,24,8,24,null,null,null,null,null,null,null,null,null,null,null,2000,13160]
[26,"Ք.Հրազդան  2-Միկրո 48շ.","Ա.Ձ.   Մաթևոսյան   Արթուր",173091952.19999999,60,24,24,8,24,null,null,null,null,null,null,null,null,null,null,null,2000,13160]
[27,"Ք.Հրազդան  2-Միկրո 48շ.","Ա.Ձ.   Մաթևոսյան   Արթուր",173091952.19999999,60,24,24,8,24,null,null,null,null,null,null,null,null,null,null,null,2000,13160]
[28,"Ք.Հրազդան  2-Միկրո 48շ.","Ա.Ձ.   Մաթևոսյան   Արթուր",173091952.19999999,60,24,24,8,24,null,null,null,null,null,null,null,null,null,null,null,2000,13160]
[29,"Ք.Հրազդան  2-Միկրո 48շ.","Ա.Ձ.   Մաթևոսյան   Արթուր",173091952.19999999,60,24,24,8,24,null,null,null,null,null,null,null,null,null,null,null,2000,13160]
[30,"Ք.Հրազդան  2-Միկրո 48շ.","Ա.Ձ.   Մաթևոսյան   Արթուր",173091952.19999999,60,24,24,8,24,null,null,null,null,null,null,null,null,null,null,null,2000,13160]
[31,"Ք.Հրազդան  2-Միկրո 48շ.","Ա.Ձ.   Մաթևոսյան   Արթուր",173091952.19999999,60,24,24,8,24,null,null,null,null,null,null,null,null,null,null,null,2000,13160]
[32,"Ք.Հրազդան  2-Միկրո 48շ.","Ա.Ձ.   Մաթևոսյան   Արթուր",173091952.19999999,60,24,24,8,24,null,null,null,null,null,null,null,null,null,null,null,2000,13160]
[33,"Ք.Հրազդան  2-Միկրո 48շ.","Ա.Ձ.   Մաթևոսյան   Արթուր",173091952.19999999,60,24,24,8,24,null,null,null,null,null,null,null,null,null,null,null,2000,13160]
[34,"Ք.Հրազդան  2-Միկրո 48շ.","Ա.Ձ.   Մաթևոսյան   Արթուր",173091952.19999999,60,24,24,8,24,null,null,null,null,null,null,null,null,null,null,null,2000,13160]
[35,"Ք.Հրազդան  2-Միկրո 48շ.","Ա.Ձ.   Մաթևոսյան   Արթուր",173091952.19999999,60,24,24,8,24,null,null,null,null,null,null,null,null,null,null,null,2000,13160]
[36,"Ք.Հրազդան  2-Միկրո 48շ.","Ա.Ձ.   Մաթևոսյան   Արթուր",173091952.19999999,60,24,24,8,24,null,null,null,null,null,null,null,null,null,null,null,2000,13160]
[37,"Ք.Հրազդան  2-Միկրո 48շ.","Ա.Ձ.   Մաթևոսյան   Արթուր",173091952.19999999,60,24,24,8,24,null,null,null,null,null,null,null,null,null,null,null,2000,13160]
[38,"Ք.Հրազդան  2-Միկրո 48շ.","Ա.Ձ.   Մաթևոսյան   Արթուր",173091952.19999999,60,24,24,8,24,null,null,null,null,null,null,null,null,null,null,null,2000,13160]
[39,"Ք.Հրազդան  2-Միկրո 48շ.","Ա.Ձ.   Մաթևոսյան   Արթուր",173091952.19999999,60,24,24,8,24,null,null,null,null,null,null,null,null,null,null,null,2000,13160]
[40,"Ք.Հրազդան  2-Միկրո 48շ.","Ա.Ձ.   Մաթևոսյան   Արթուր",173091952.19999999,60,24,24,8,24,null,null,null,null,null,null,null,null,null,null,null,2000,13160]
[41,"Ք.Հրազդան  2-Միկրո 48շ.","Ա.Ձ.   Մաթևոսյան   Արթուր",173091952.19999999,60,24,24,8,24,null,null,null,null,null,null,null,null,null,null,null,2000,13160]
[42,"Ք.Հրազդան  2-Միկրո 48շ.","Ա.Ձ.   Մաթևոսյան   Արթուր",173091952.19999999,60,24,24,8,24,null,null,null,null,null,null,null,null,null,null,null,2000,13160]
[43,"Ք.Հրազդան  2-Միկրո 48շ.","Ա.Ձ.   Մաթևոսյան   Արթուր",173091952.19999999,60,24,24,8,24,null,null,null,null,null,null,null,null,null,null,null,2000,13160]
[44,"Ք.Հրազդան  2-Միկրո 48շ.","Ա.Ձ.   Մաթևոսյան   Արթուր",173091952.19999999,60,24,24,8,24,null,null,null,null,null,null,null,null,null,null,null,2000,13160]
[45,"Ք.Հրազդան  2-Միկրո 48շ.","Ա.Ձ.   Մաթևոսյան   Արթուր",173091952.19999999,60,24,24,8,24,null,null,null,null,null,null,null,null,null,null,null,2000,13160]
[46,"Ք.Հրազդան  2-Միկրո 48շ.","Ա.Ձ.   Մաթևոսյան   Արթուր",173091952.19999999,60,24,24,8,24,null,null,null,null,null,null,null,null,null,null,null,2000,13160]
[47,"Ք.Հրազդան  2-Միկրո 48շ.","Ա.Ձ.   Մաթևոսյան   Արթուր",173091952.19999999,60,24,24,8,24,null,null,null,null,null,null,null,null,null,null,null,2000,13160]
[48,"Ք.Հրազդան  2-Միկրո 48շ.","Ա.Ձ.   Մաթևոսյան   Արթուր",173091952.19999999,60,24,24,8,24,null,null,null,null,null,null,null,null,null,null,null,2000,13160]
[49,"Ք.Հրազդան  2-Միկրո 48շ.","Ա.Ձ.   Մաթևոսյան   Արթուր",173091952.19999999,60,24,24,8,24,null,null,null,null,null,null,null,null,null,null,null,2000,13160]
[50,"Ք.Հրազդան  2-Միկրո 48շ.","Ա.Ձ.   Մաթևոսյան   Արթուր",173091952.19999999,60,24,24,8,24,null,null,null,null,null,null,null,null,null,null,null,2000,13160]
[51,"Ք.Հրազդան  2-Միկրո 48շ.","Ա.Ձ.   Մաթևոսյան   Արթուր",173091952.19999999,60,24,24,8,24,null,null,null,null,null,null,null,null,null,null,null,2000,13160]
[52,"Ք.Հրազդան  2-Միկրո 48շ.","Ա.Ձ.   Մաթևոսյան   Արթուր",173091952.19999999,60,24,24,8,24,null,null,null,null,null,null,null,null,null,null,null,2000,13160]
[53,"Ք.Հրազդան  2-Միկրո 48շ.","Ա.Ձ.   Մաթևոսյան   Արթուր",173091952.19999999,60,24,24,8,24,null,null,null,null,null,null,null,null,null,null,null,2000,13160]
[54,"Ք.Հրազդան  2-Միկրո 48շ.","Ա.Ձ.   Մաթևոսյան   Արթուր",173091952.19999999,60,24,24,8,24,null,null,null,null,null,null,null,null,null,null,null,2000,13160]
[55,"Ք.Հրազդան  2-Միկրո 48շ.","Ա.Ձ.   Մաթևոսյան   Արթուր",173091952.19999999,60,24,24,8,24,null,null,null,null,null,null,null,null,null,null,null,2000,13160]
[56,"Ք.Հրազդան  2-Միկրո 48շ.","Ա.Ձ.   Մաթևոսյան   Արթուր",173091952.19999999,60,24,24,8,24,null,null,null,null,null,null,null,null,null,null,null,2000,13160]
[57,"Ք.Հրազդան  2-Միկրո 48շ.","Ա.Ձ.   Մաթևոսյան   Արթուր",173091952.19999999,60,24,24,8,24,null,null,null,null,null,null,null,null,null,null,null,2000,{"$f":"SUMPRODUCT($E$5:$T$5,E62:T62)-U62","v":13160}]
[58,"Ք.Հրազդան  2-Միկրո 48շ.","Ա.Ձ.   Մաթևոսյան   Արթուր",173091952.19999999,60,24,24,8,24,null,null,null,null,null,null,null,null,null,null,null,2000,13160]
[59,"Ք.Հրազդան  2-Միկրո 48շ.","Ա.Ձ.   Մաթևոսյան   Արթուր",173091952.19999999,60,24,24,8,24,null,null,null,null,null,null,null,null,null,null,null,2000,13160]
[60,"Ք.Հրազդան  2-Միկրո 48շ.","Ա.Ձ.   Մաթևոսյան   Արթուր",173091952.19999999,60,24,24,8,24,null,null,null,null,null,null,null,null,null,null,null,2000,13160]

{"sheet":"Абовян","index":3,"n_rows":65,"n_cols":32,"rows_kept":65,"cut":false,"hidden":false,"merged":[]}
[]
[]
[null,"адресс","имя  фамиля",null,"лим-1,5","лим-0,5","тан-0,5","натур-сок  2","натур-сок  0.25","халодны  кофе","малоты  кофе  кг.","малоты  кофе  Джови  шт.","малоты  кофе  Лидер  шт.","куруруз","чипси  80  гр.","чипси  200  гр.","Ади-Буди","Соска","Бочка","Ведро"]
[null,"Абовян","Արսեն  Կիրակոսյան",null,null,null,null,null,null,null,null,null,null,null,null,null,null,null,null,null,"скидка","сумма"]
[null,null,null,"ՀՎՀՀ",80,60,80,500,125]
[1,"Ք.Աբովյան  Միկրո 26շ.","Ա.Ձ.   Մաթևոսյան   Արթուր",42256545,8,null,null,6,10,null,null,null,null,null,null,null,null,null,null,null,2000,{"$f":"SUMPRODUCT($E$5:$T$5,E6:T6)-U6","v":2890}]
[2,"Ք.Աբովյան  Միկրո 38շ.","Ա.Ձ.   Մաթևոսյան   Արմեն",35658975,null,24,null,null,null,null,null,null,null,null,null,null,null,null,null,null,2000,{"$f":"SUMPRODUCT($E$5:$T$5,E7:T7)-U7","v":-560}]
[3,"Ք.Աբովյան  Միկրո 40շ.","Ա.Ձ.   Սարգսյան  Կարեն",25854565,72,48,24,8,24,null,null,null,null,null,null,null,null,null,null,null,2000,15560]
[4,"Ք.Աբովյան  4-Միկրո 2շ.","Ա.Ձ.   Կարապետյան  Մարի",85456523,null,24,24,8,24,null,null,null,null,null,null,null,null,null,null,null,2000,8360]
[5,"Ք.Աբովյան  4-Միկրո 20շ.","Ա.Ձ.   Մաթևոսյան   Արթուր",77255533,60,null,null,16,24,null,null,null,null,null,null,null,null,null,null,null,2000,13800]
[6,"Ք.Աբովյան  4-Միկրո 30շ.","Ա.Ձ.   Մաթևոսյան   Արթուր",89235085,48,24,24,8,60,null,null,null,null,null,null,null,null,null,null,null,2000,16700]
[7,"Ք.Աբովյան  4-Միկրո 36շ.","abo",101214637.8,50,24,24,null,24,null,null,null,null,null,null,null,null,null,null,null,2000,8360]
[8,"Ք.Աբովյան  4-Միկրո 45շ.","kbo",113194190.2,120,24,60,8,48,null,null,null,null,null,null,null,null,null,null,null,2000,23840]
[9,"Ք.Աբովյան  2-Միկրո 16շ.","mbo",125173742.59999999,null,null,null,20,70,null,null,null,null,null,null,null,null,null,null,null,2000,16750]
[10,"Ք.Աբովյան  2-Միկրո 20շ.","Ա.Ձ.   Մաթևոսյան   Արթուր",137153295,72,48,24,20,24,null,null,null,null,null,null,null,null,null,null,null,2000,21560]
[11,"Ք.Աբովյան  2-Միկրո 26շ.","Ա.Ձ.   Մաթևոսյան   Արթուր",149132847.40000001,60,24,120,8,60,null,null,null,null,null,null,null,null,null,null,null,2000,25340]
[12,"Ք.Աբովյան  2-Միկրո 46շ.","Ա.Ձ.   Մաթևոսյան   Արթուր",161112399.80000001,48,60,24,20,24,null,null,null,null,null,null,null,null,null,null,null,2000,20360]
[13,"Ք.Աբովյան  2-Միկրո 48շ.","Ա.Ձ.   Մաթևոսյան   Արթուր",173091952.19999999,60,24,24,8,24,null,null,null,null,null,null,null,null,null,null,null,2000,13160]
[14,"Ք.Աբովյան  2-Միկրո 48շ.","Ա.Ձ.   Մաթևոսյան   Արթուր",173091952.19999999,60,24,24,8,24,null,null,null,null,null,null,null,null,null,null,null,2000,13160]
[15,"Ք.Աբովյան  2-Միկրո 48շ.","Ա.Ձ.   Մաթևոսյան   Արթուր",173091952.19999999,60,24,24,8,24,null,null,null,null,null,null,null,null,null,null,null,2000,13160]
[16,"Ք.Աբովյան  2-Միկրո 48շ.","Ա.Ձ.   Մաթևոսյան   Արթուր",173091952.19999999,60,24,24,8,24,null,null,null,null,null,null,null,null,null,null,null,2000,13160]
[17,"Ք.Աբովյան  2-Միկրո 48շ.","Ա.Ձ.   Մաթևոսյան   Արթուր",173091952.19999999,60,24,24,8,24,null,null,null,null,null,null,null,null,null,null,null,2000,13160]
[18,"Ք.Աբովյան  2-Միկրո 48շ.","Ա.Ձ.   Մաթևոսյան   Արթուր",173091952.19999999,60,24,24,8,24,null,null,null,null,null,null,null,null,null,null,null,2000,13160]
[19,"Ք.Աբովյան  2-Միկրո 48շ.","Ա.Ձ.   Մաթևոսյան   Արթուր",173091952.19999999,60,24,24,8,24,null,null,null,null,null,null,null,null,null,null,null,2000,13160,null,null,null,null,null,null,"тан-0,5","kbo",120,10724]
[20,"Ք.Աբովյան  2-Միկրո 48շ.","Ա.Ձ.   Մաթևոսյան   Արթուր",173091952.19999999,60,24,24,8,24,null,null,null,null,null,null,null,null,null,null,null,2000,13160]
[21,"Ք.Աբովյան  2-Միկրո 48շ.","Ա.Ձ.   Մաթևոսյան   Արթուր",173091952.19999999,60,24,24,8,24,null,null,null,null,null,null,null,null,null,null,null,2000,13160]
[22,"Ք.Աբովյան  2-Միկրո 48շ.","Ա.Ձ.   Մաթևոսյան   Արթուր",173091952.19999999,60,24,24,8,24,null,null,null,null,null,null,null,null,null,null,null,2000,13160]
[23,"Ք.Աբովյան  2-Միկրո 48շ.","Ա.Ձ.   Մաթևոսյան   Արթուր",173091952.19999999,60,24,24,8,24,null,null,null,null,null,null,null,null,null,null,null,2000,13160]
[24,"Ք.Աբովյան  2-Միկրո 48շ.","Ա.Ձ.   Մաթևոսյան   Արթուր",173091952.19999999,60,24,24,8,24,null,null,null,null,null,null,null,null,null,null,null,2000,13160]
[25,"Ք.Աբովյան  2-Միկրո 48շ.","Ա.Ձ.   Մաթևոսյան   Արթուր",173091952.19999999,60,24,24,8,24,null,null,null,null,null,null,null,null,null,null,null,2000,13160]
[26,"Ք.Աբովյան  2-Միկրո 48շ.","Ա.Ձ.   Մաթևոսյան   Արթուր",173091952.19999999,60,24,24,8,24,null,null,null,null,null,null,null,null,null,null,null,2000,13160]
[27,"Ք.Աբովյան  2-Միկրո 48շ.","Ա.Ձ.   Մաթևոսյան   Արթուր",173091952.19999999,60,24,24,8,24,null,null,null,null,null,null,null,null,null,null,null,2000,13160]
[28,"Ք.Աբովյան  2-Միկրո 48շ.","Ա.Ձ.   Մաթևոսյան   Արթուր",173091952.19999999,60,24,24,8,24,null,null,null,null,null,null,null,null,null,null,null,2000,13160]
[29,"Ք.Աբովյան  2-Միկրո 48շ.","Ա.Ձ.   Մաթևոսյան   Արթուր",173091952.19999999,60,24,24,8,24,null,null,null,null,null,null,null,null,null,null,null,2000,13160]
[30,"Ք.Աբովյան  2-Միկրո 48շ.","Ա.Ձ.   Մաթևոսյան   Արթուր",173091952.19999999,60,24,24,8,24,null,null,null,null,null,null,null,null,null,null,null,2000,13160]
[31,"Ք.Աբովյան  2-Միկրո 48շ.","Ա.Ձ.   Մաթևոսյան   Արթուր",173091952.19999999,60,24,24,8,24,null,null,null,null,null,null,null,null,null,null,null,2000,13160]
[32,"Ք.Աբովյան  2-Միկրո 48շ.","Ա.Ձ.   Մաթևոսյան   Արթուր",173091952.19999999,60,24,24,8,24,null,null,null,null,null,null,null,null,null,null,null,2000,13160]
[33,"Ք.Աբովյան  2-Միկրո 48շ.","Ա.Ձ.   Մաթևոսյան   Արթուր",173091952.19999999,60,24,24,8,24,null,null,null,null,null,null,null,null,null,null,null,2000,13160]
[34,"Ք.Աբովյան  2-Միկրո 48շ.","Ա.Ձ.   Մաթևոսյան   Արթուր",173091952.19999999,60,24,24,8,24,null,null,null,null,null,null,null,null,null,null,null,2000,13160]
[35,"Ք.Աբովյան  2-Միկրո 48շ.","Ա.Ձ.   Մաթևոսյան   Արթուր",173091952.19999999,60,24,24,8,24,null,null,null,null,null,null,null,null,null,null,null,2000,13160]
[36,"Ք.Աբովյան  2-Միկրո 48շ.","Ա.Ձ.   Մաթևոսյան   Արթուր",173091952.19999999,60,24,24,8,24,null,null,null,null,null,null,null,null,null,null,null,2000,13160]
[37,"Ք.Աբովյան  2-Միկրո 48շ.","Ա.Ձ.   Մաթևոսյան   Արթուր",173091952.19999999,60,24,24,8,24,null,null,null,null,null,null,null,null,null,null,null,2000,13160]
[38,"Ք.Աբովյան  2-Միկրո 48շ.","Ա.Ձ.   Մաթևոսյան   Արթուր",173091952.19999999,60,24,24,8,24,null,null,null,null,null,null,null,null,null,null,null,2000,13160]
[39,"Ք.Աբովյան  2-Միկրո 48շ.","Ա.Ձ.   Մաթևոսյան   Արթուր",173091952.19999999,60,24,24,8,24,null,null,null,null,null,null,null,null,null,null,null,2000,13160]
[40,"Ք.Աբովյան  2-Միկրո 48շ.","Ա.Ձ.   Մաթևոսյան   Արթուր",173091952.19999999,60,24,24,8,24,null,null,null,null,null,null,null,null,null,null,null,2000,13160]
[41,"Ք.Աբովյան  2-Միկրո 48շ.","Ա.Ձ.   Մաթևոսյան   Արթուր",173091952.19999999,60,24,24,8,24,null,null,null,null,null,null,null,null,null,null,null,2000,13160]
[42,"Ք.Աբովյան  2-Միկրո 48շ.","Ա.Ձ.   Մաթևոսյան   Արթուր",173091952.19999999,60,24,24,8,24,null,null,null,null,null,null,null,null,null,null,null,2000,13160]
[43,"Ք.Աբովյան  2-Միկրո 48շ.","Ա.Ձ.   Մաթևոսյան   Արթուր",173091952.19999999,60,24,24,8,24,null,null,null,null,null,null,null,null,null,null,null,2000,13160]
[44,"Ք.Աբովյան  2-Միկրո 48շ.","Ա.Ձ.   Մաթևոսյան   Արթուր",173091952.19999999,60,24,24,8,24,null,null,null,null,null,null,null,null,null,null,null,2000,13160]
[45,"Ք.Աբովյան  2-Միկրո 48շ.","Ա.Ձ.   Մաթևոսյան   Արթուր",173091952.19999999,60,24,24,8,24,null,null,null,null,null,null,null,null,null,null,null,2000,13160]
[46,"Ք.Աբովյան  2-Միկրո 48շ.","Ա.Ձ.   Մաթևոսյան   Արթուր",173091952.19999999,60,24,24,8,24,null,null,null,null,null,null,null,null,null,null,null,2000,13160]
[47,"Ք.Աբովյան  2-Միկրո 48շ.","Ա.Ձ.   Մաթևոսյան   Արթուր",173091952.19999999,60,24,24,8,24,null,null,null,null,null,null,null,null,null,null,null,2000,13160]
[48,"Ք.Աբովյան  2-Միկրո 48շ.","Ա.Ձ.   Մաթևոսյան   Արթուր",173091952.19999999,60,24,24,8,24,null,null,null,null,null,null,null,null,null,null,null,2000,13160]
[49,"Ք.Աբովյան  2-Միկրո 48շ.","Ա.Ձ.   Մաթևոսյան   Արթուր",173091952.19999999,60,24,24,8,24,null,null,null,null,null,null,null,null,null,null,null,2000,13160]
[50,"Ք.Աբովյան  2-Միկրո 48շ.","Ա.Ձ.   Մաթևոսյան   Արթուր",173091952.19999999,60,24,24,8,24,null,null,null,null,null,null,null,null,null,null,null,2000,13160]
[51,"Ք.Աբովյան  2-Միկրո 48շ.","Ա.Ձ.   Մաթևոսյան   Արթուր",173091952.19999999,60,24,24,8,24,null,null,null,null,null,null,null,null,null,null,null,2000,13160]
[52,"Ք.Աբովյան  2-Միկրո 48շ.","Ա.Ձ.   Մաթևոսյան   Արթուր",173091952.19999999,60,24,24,8,24,null,null,null,null,null,null,null,null,null,null,null,2000,13160]
[53,"Ք.Աբովյան  2-Միկրո 48շ.","Ա.Ձ.   Մաթևոսյան   Արթուր",173091952.19999999,60,24,24,8,24,null,null,null,null,null,null,null,null,null,null,null,2000,13160]
[54,"Ք.Աբովյան  2-Միկրո 48շ.","Ա.Ձ.   Մաթևոսյան   Արթուր",173091952.19999999,60,24,24,8,24,null,null,null,null,null,null,null,null,null,null,null,2000,13160]
[55,"Ք.Աբովյան  2-Միկրո 48շ.","Ա.Ձ.   Մաթևոսյան   Արթուր",173091952.19999999,60,24,24,8,24,null,null,null,null,null,null,null,null,null,null,null,2000,13160]
[56,"Ք.Աբովյան  2-Միկրո 48շ.","Ա.Ձ.   Մաթևոսյան   Արթուր",173091952.19999999,60,24,24,8,24,null,null,null,null,null,null,null,null,null,null,null,2000,13160]
[57,"Ք.Աբովյան  2-Միկրո 48շ.","Ա.Ձ.   Մաթևոսյան   Արթուր",173091952.19999999,60,24,24,8,24,null,null,null,null,null,null,null,null,null,null,null,2000,13160]
[58,"Ք.Աբովյան  2-Միկրո 48շ.","Ա.Ձ.   Մաթևոսյան   Արթուր",173091952.19999999,60,24,24,8,24,null,null,null,null,null,null,null,null,null,null,null,2000,13160]
[59,"Ք.Աբովյան  2-Միկրո 48շ.","Ա.Ձ.   Մաթևոսյան   Արթուր",173091952.19999999,60,24,24,8,24,null,null,null,null,null,null,null,null,null,null,null,2000,13160]
[60,"Ք.Աբովյան  2-Միկրո 48շ.","Ա.Ձ.   Մաթևոսյան   Արթուր",173091952.19999999,60,24,24,8,24,null,null,null,null,null,null,null,null,null,null,null,2000,13160]

{"sheet":"Севан","index":4,"n_rows":65,"n_cols":32,"rows_kept":65,"cut":false,"hidden":false,"merged":[]}
[]
[]
[null,"адресс","имя  фамиля",null,"лим-1,5","лим-0,5","тан-0,5","натур-сок  2","натур-сок  0.25","халодны  кофе","малоты  кофе  кг.","малоты  кофе  Джови  шт.","малоты  кофе  Лидер  шт.","куруруз","чипси  80  гр.","чипси  200  гр.","Ади-Буди","Соска","Бочка","Ведро"]
[null,"Севан","Արսեն  Կիրակոսյան",null,null,null,null,null,null,null,null,null,null,null,null,null,null,null,null,null,"скидка","сумма"]
[null,null,null,"ՀՎՀՀ",80,60,80,500,125]
[1,"Ք.Սևան  Միկրո 26շ.","Ա.Ձ.   Մաթևոսյան   Արթուր",42256545,8,null,null,6,10,null,null,null,null,null,null,null,null,null,null,null,2000,{"$f":"SUMPRODUCT($E$5:$T$5,E6:T6)-U6","v":2890}]
[2,"Ք.Սևան  Միկրո 38շ.","Ա.Ձ.   Մաթևոսյան   Արմեն",35658975,null,24,null,null,null,null,null,null,null,null,null,null,null,null,null,null,2000,{"$f":"SUMPRODUCT($E$5:$T$5,E7:T7)-U7","v":-560}]
[3,"Ք.Սևան  Միկրո 40շ.","Ա.Ձ.   Սարգսյան  Կարեն",25854565,72,48,24,8,24,null,null,null,null,null,null,null,null,null,null,null,2000,15560]
[4,"Ք.Սևան  4-Միկրո 2շ.","Ա.Ձ.   Կարապետյան  Մարի",85456523,null,24,24,8,24,null,null,null,null,null,null,null,null,null,null,null,2000,8360]
[5,"Ք.Սևան  4-Միկրո 20շ.","Ա.Ձ.   Մաթևոսյան   Արթուր",77255533,60,null,null,16,24,null,null,null,null,null,null,null,null,null,null,null,2000,13800]
[6,"Ք.Սևան  4-Միկրո 30շ.","Ա.Ձ.   Մաթևոսյան   Արթուր",89235085,48,24,24,8,60,null,null,null,null,null,null,null,null,null,null,null,2000,16700]
[7,"Ք.Սևան  4-Միկրո 36շ.","abo",101214637.8,50,24,24,null,24,null,null,null,null,null,null,null,null,null,null,null,2000,8360]
[8,"Ք.Սևան  4-Միկրո 45շ.","kbo",113194190.2,120,24,60,8,48,null,null,null,null,null,null,null,null,null,null,null,2000,23840]
[9,"Ք.Սևան  2-Միկրո 16շ.","mbo",125173742.59999999,null,null,null,20,70,null,null,null,null,null,null,null,null,null,null,null,2000,16750]
[10,"Ք.Սևան  2-Միկրո 20շ.","Ա.Ձ.   Մաթևոսյան   Արթուր",137153295,72,48,24,20,24,null,null,null,null,null,null,null,null,null,null,null,2000,21560]
[11,"Ք.Սևան  2-Միկրո 26շ.","Ա.Ձ.   Մաթևոսյան   Արթուր",149132847.40000001,60,24,120,8,60,null,null,null,null,null,null,null,null,null,null,null,2000,25340]
[12,"Ք.Սևան  2-Միկրո 46շ.","Ա.Ձ.   Մաթևոսյան   Արթուր",161112399.80000001,48,60,24,20,24,null,null,null,null,null,null,null,null,null,null,null,2000,20360]
[13,"Ք.Սևան  2-Միկրո 48շ.","Ա.Ձ.   Մաթևոսյան   Արթուր",173091952.19999999,60,24,24,8,24,null,null,null,null,null,null,null,null,null,null,null,2000,13160]
[14,"Ք.Սևան  2-Միկրո 48շ.","Ա.Ձ.   Մաթևոսյան   Արթուր",173091952.19999999,60,24,24,8,24,null,null,null,null,null,null,null,null,null,null,null,2000,13160]
[15,"Ք.Սևան  2-Միկրո 48շ.","Ա.Ձ.   Մաթևոսյան   Արթուր",173091952.19999999,60,24,24,8,24,null,null,null,null,null,null,null,null,null,null,null,2000,13160]
[16,"Ք.Սևան  2-Միկրո 48շ.","Ա.Ձ.   Մաթևոսյան   Արթուր",173091952.19999999,60,24,24,8,24,null,null,null,null,null,null,null,null,null,null,null,2000,13160]
[17,"Ք.Սևան  2-Միկրո 48շ.","Ա.Ձ.   Մաթևոսյան   Արթուր",173091952.19999999,60,24,24,8,24,null,null,null,null,null,null,null,null,null,null,null,2000,13160]
[18,"Ք.Սևան  2-Միկրո 48շ.","Ա.Ձ.   Մաթևոսյան   Արթուր",173091952.19999999,60,24,24,8,24,null,null,null,null,null,null,null,null,null,null,null,2000,13160]
[19,"Ք.Սևան  2-Միկրո 48շ.","Ա.Ձ.   Մաթևոսյան   Արթուր",173091952.19999999,60,24,24,8,24,null,null,null,null,null,null,null,null,null,null,null,2000,13160,null,null,null,null,null,null,"тан-0,5","kbo",120,10724]
[20,"Ք.Սևան  2-Միկրո 48շ.","Ա.Ձ.   Մաթևոսյան   Արթուր",173091952.19999999,60,24,24,8,24,null,null,null,null,null,null,null,null,null,null,null,2000,13160]
[21,"Ք.Սևան  2-Միկրո 48շ.","Ա.Ձ.   Մաթևոսյան   Արթուր",173091952.19999999,60,24,24,8,24,null,null,null,null,null,null,null,null,null,null,null,2000,13160]
[22,"Ք.Սևան  2-Միկրո 48շ.","Ա.Ձ.   Մաթևոսյան   Արթուր",173091952.19999999,60,24,24,8,24,null,null,null,null,null,null,null,null,null,null,null,2000,13160]
[23,"Ք.Սևան  2-Միկրո 48շ.","Ա.Ձ.   Մաթևոսյան   Արթուր",173091952.19999999,60,24,24,8,24,null,null,null,null,null,null,null,null,null,null,null,2000,13160]
[24,"Ք.Սևան  2-Միկրո 48շ.","Ա.Ձ.   Մաթևոսյան   Արթուր",173091952.19999999,60,24,24,8,24,null,null,null,null,null,null,null,null,null,null,null,2000,13160]
[25,"Ք.Սևան  2-Միկրո 48շ.","Ա.Ձ.   Մաթևոսյան   Արթուր",173091952.19999999,60,24,24,8,24,null,null,null,null,null,null,null,null,null,null,null,2000,13160]
[26,"Ք.Սևան  2-Միկրո 48շ.","Ա.Ձ.   Մաթևոսյան   Արթուր",173091952.19999999,60,24,24,8,24,null,null,null,null,null,null,null,null,null,null,null,2000,13160]
[27,"Ք.Սևան  2-Միկրո 48շ.","Ա.Ձ.   Մաթևոսյան   Արթուր",173091952.19999999,60,24,24,8,24,null,null,null,null,null,null,null,null,null,null,null,2000,13160]
[28,"Ք.Սևան  2-Միկրո 48շ.","Ա.Ձ.   Մաթևոսյան   Արթուր",173091952.19999999,60,24,24,8,24,null,null,null,null,null,null,null,null,null,null,null,2000,13160]
[29,"Ք.Սևան  2-Միկրո 48շ.","Ա.Ձ.   Մաթևոսյան   Արթուր",173091952.19999999,60,24,24,8,24,null,null,null,null,null,null,null,null,null,null,null,2000,13160]
[30,"Ք.Սևան  2-Միկրո 48շ.","Ա.Ձ.   Մաթևոսյան   Արթուր",173091952.19999999,60,24,24,8,24,null,null,null,null,null,null,null,null,null,null,null,2000,13160]
[31,"Ք.Սևան  2-Միկրո 48շ.","Ա.Ձ.   Մաթևոսյան   Արթուր",173091952.19999999,60,24,24,8,24,null,null,null,null,null,null,null,null,null,null,null,2000,13160]
[32,"Ք.Սևան  2-Միկրո 48շ.","Ա.Ձ.   Մաթևոսյան   Արթուր",173091952.19999999,60,24,24,8,24,null,null,null,null,null,null,null,null,null,null,null,2000,13160]
[33,"Ք.Սևան  2-Միկրո 48շ.","Ա.Ձ.   Մաթևոսյան   Արթուր",173091952.19999999,60,24,24,8,24,null,null,null,null,null,null,null,null,null,null,null,2000,13160]
[34,"Ք.Սևան  2-Միկրո 48շ.","Ա.Ձ.   Մաթևոսյան   Արթուր",173091952.19999999,60,24,24,8,24,null,null,null,null,null,null,null,null,null,null,null,2000,13160]
[35,"Ք.Սևան  2-Միկրո 48շ.","Ա.Ձ.   Մաթևոսյան   Արթուր",173091952.19999999,60,24,24,8,24,null,null,null,null,null,null,null,null,null,null,null,2000,13160]
[36,"Ք.Սևան  2-Միկրո 48շ.","Ա.Ձ.   Մաթևոսյան   Արթուր",173091952.19999999,60,24,24,8,24,null,null,null,null,null,null,null,null,null,null,null,2000,13160]
[37,"Ք.Սևան  2-Միկրո 48շ.","Ա.Ձ.   Մաթևոսյան   Արթուր",173091952.19999999,60,24,24,8,24,null,null,null,null,null,null,null,null,null,null,null,2000,13160]
[38,"Ք.Սևան  2-Միկրո 48շ.","Ա.Ձ.   Մաթևոսյան   Արթուր",173091952.19999999,60,24,24,8,24,null,null,null,null,null,null,null,null,null,null,null,2000,13160]
[39,"Ք.Սևան  2-Միկրո 48շ.","Ա.Ձ.   Մաթևոսյան   Արթուր",173091952.19999999,60,24,24,8,24,null,null,null,null,null,null,null,null,null,null,null,2000,13160]
[40,"Ք.Սևան  2-Միկրո 48շ.","Ա.Ձ.   Մաթևոսյան   Արթուր",173091952.19999999,60,24,24,8,24,null,null,null,null,null,null,null,null,null,null,null,2000,13160]
[41,"Ք.Սևան  2-Միկրո 48շ.","Ա.Ձ.   Մաթևոսյան   Արթուր",173091952.19999999,60,24,24,8,24,null,null,null,null,null,null,null,null,null,null,null,2000,13160]
[42,"Ք.Սևան  2-Միկրո 48շ.","Ա.Ձ.   Մաթևոսյան   Արթուր",173091952.19999999,60,24,24,8,24,null,null,null,null,null,null,null,null,null,null,null,2000,13160]
[43,"Ք.Սևան  2-Միկրո 48շ.","Ա.Ձ.   Մաթևոսյան   Արթուր",173091952.19999999,60,24,24,8,24,null,null,null,null,null,null,null,null,null,null,null,2000,13160]
[44,"Ք.Սևան  2-Միկրո 48շ.","Ա.Ձ.   Մաթևոսյան   Արթուր",173091952.19999999,60,24,24,8,24,null,null,null,null,null,null,null,null,null,null,null,2000,13160]
[45,"Ք.Սևան  2-Միկրո 48շ.","Ա.Ձ.   Մաթևոսյան   Արթուր",173091952.19999999,60,24,24,8,24,null,null,null,null,null,null,null,null,null,null,null,2000,13160]
[46,"Ք.Սևան  2-Միկրո 48շ.","Ա.Ձ.   Մաթևոսյան   Արթուր",173091952.19999999,60,24,24,8,24,null,null,null,null,null,null,null,null,null,null,null,2000,13160]
[47,"Ք.Սևան  2-Միկրո 48շ.","Ա.Ձ.   Մաթևոսյան   Արթուր",173091952.19999999,60,24,24,8,24,null,null,null,null,null,null,null,null,null,null,null,2000,13160]
[48,"Ք.Սևան  2-Միկրո 48շ.","Ա.Ձ.   Մաթևոսյան   Արթուր",173091952.19999999,60,24,24,8,24,null,null,null,null,null,null,null,null,null,null,null,2000,13160]
[49,"Ք.Սևան  2-Միկրո 48շ.","Ա.Ձ.   Մաթևոսյան   Արթուր",173091952.19999999,60,24,24,8,24,null,null,null,null,null,null,null,null,null,null,null,2000,13160]
[50,"Ք.Սևան  2-Միկրո 48շ.","Ա.Ձ.   Մաթևոսյան   Արթուր",173091952.19999999,60,24,24,8,24,null,null,null,null,null,null,null,null,null,null,null,2000,13160]
[51,"Ք.Սևան  2-Միկրո 48շ.","Ա.Ձ.   Մաթևոսյան   Արթուր",173091952.19999999,60,24,24,8,24,null,null,null,null,null,null,null,null,null,null,null,2000,13160]
[52,"Ք.Սևան  2-Միկրո 48շ.","Ա.Ձ.   Մաթևոսյան   Արթուր",173091952.19999999,60,24,24,8,24,null,null,null,null,null,null,null,null,null,null,null,2000,13160]
[53,"Ք.Սևան  2-Միկրո 48շ.","Ա.Ձ.   Մաթևոսյան   Արթուր",173091952.19999999,60,24,24,8,24,null,null,null,null,null,null,null,null,null,null,null,2000,13160]
[54,"Ք.Սևան  2-Միկրո 48շ.","Ա.Ձ.   Մաթևոսյան   Արթուր",173091952.19999999,60,24,24,8,24,null,null,null,null,null,null,null,null,null,null,null,2000,13160]
[55,"Ք.Սևան  2-Միկրո 48շ.","Ա.Ձ.   Մաթևոսյան   Արթուր",173091952.19999999,60,24,24,8,24,null,null,null,null,null,null,null,null,null,null,null,2000,13160]
[56,"Ք.Սևան  2-Միկրո 48շ.","Ա.Ձ.   Մաթևոսյան   Արթուր",173091952.19999999,60,24,24,8,24,null,null,null,null,null,null,null,null,null,null,null,2000,13160]
[57,"Ք.Սևան  2-Միկրո 48շ.","Ա.Ձ.   Մաթևոսյան   Արթուր",173091952.19999999,60,24,24,8,24,null,null,null,null,null,null,null,null,null,null,null,2000,13160]
[58,"Ք.Սևան  2-Միկրո 48շ.","Ա.Ձ.   Մաթևոսյան   Արթուր",173091952.19999999,60,24,24,8,24,null,null,null,null,null,null,null,null,null,null,null,2000,13160]
[59,"Ք.Սևան  2-Միկրո 48շ.","Ա.Ձ.   Մաթևոսյան   Արթուր",173091952.19999999,60,24,24,8,24,null,null,null,null,null,null,null,null,null,null,null,2000,13160]
[60,"Ք.Սևան  2-Միկրո 48շ.","Ա.Ձ.   Մաթևոսյան   Արթուր",173091952.19999999,60,24,24,8,24,null,null,null,null,null,null,null,null,null,null,null,2000,13160]

{"sheet":"Гавар","index":5,"n_rows":65,"n_cols":32,"rows_kept":65,"cut":false,"hidden":false,"merged":[]}
[]
[]
[null,"адресс","имя  фамиля",null,"лим-1,5","лим-0,5","тан-0,5","натур-сок  2","натур-сок  0.25","халодны  кофе","малоты  кофе  кг.","малоты  кофе  Джови  шт.","малоты  кофе  Лидер  шт.","куруруз","чипси  80  гр.","чипси  200  гр.","Ади-Буди","Соска","Бочка","Ведро"]
[null,"Гавар","Արսեն  Կիրակոսյան",null,null,null,null,null,null,null,null,null,null,null,null,null,null,null,null,null,"скидка","сумма"]
[null,null,null,"ՀՎՀՀ",80,60,80,500,125]
[1,"Ք.Գավառ  Միկրո 26շ.","Ա.Ձ.   Մաթևոսյան   Արթուր",42256545,8,null,null,6,10,null,null,null,null,null,null,null,null,null,null,null,2000,{"$f":"SUMPRODUCT(E5:T5,E6:T6)-U6","v":2890}]
[2,"Ք.Գավառ  Միկրո 38շ.","Ա.Ձ.   Մաթևոսյան   Արմեն",35658975,null,24,null,null,null,null,null,null,null,null,null,null,null,null,null,null,2000,{"$f":"SUMPRODUCT(E6:T6,E7:T7)-U7","v":-2000}]
[3,"Ք.Գավառ  Միկրո 40շ.","Ա.Ձ.   Սարգսյան  Կարեն",25854565,72,48,24,8,24,null,null,null,null,null,null,null,null,null,null,null,2000,-848]
[4,"Ք.Գավառ  4-Միկրո 2շ.","Ա.Ձ.   Կարապետյան  Մարի",85456523,null,24,24,8,24,null,null,null,null,null,null,null,null,null,null,null,2000,368]
[5,"Ք.Գավառ  4-Միկրո 20շ.","Ա.Ձ.   Մաթևոսյան   Արթուր",77255533,60,null,null,16,24,null,null,null,null,null,null,null,null,null,null,null,2000,-1296]
[6,"Ք.Գավառ  4-Միկրո 30շ.","Ա.Ձ.   Մաթևոսյան   Արթուր",89235085,48,24,24,8,60,null,null,null,null,null,null,null,null,null,null,null,2000,2448]
[7,"Ք.Գավառ  4-Միկրո 36շ.","abo",101214637.8,50,24,24,null,24,null,null,null,null,null,null,null,null,null,null,null,2000,2992]
[8,"Ք.Գավառ  4-Միկրո 45շ.","kbo",113194190.2,120,24,60,8,48,null,null,null,null,null,null,null,null,null,null,null,2000,7168]
[9,"Ք.Գավառ  2-Միկրո 16շ.","mbo",125173742.59999999,null,null,null,20,70,null,null,null,null,null,null,null,null,null,null,null,2000,1520]
[10,"Ք.Գավառ  2-Միկրո 20շ.","Ա.Ձ.   Մաթևոսյան   Արթուր",137153295,72,48,24,20,24,null,null,null,null,null,null,null,null,null,null,null,2000,80]
[11,"Ք.Գավառ  2-Միկրո 26շ.","Ա.Ձ.   Մաթևոսյան   Արթուր",149132847.40000001,60,24,120,8,60,null,null,null,null,null,null,null,null,null,null,null,2000,7952]
[12,"Ք.Գավառ  2-Միկրո 46շ.","Ա.Ձ.   Մաթևոսյան   Արթուր",161112399.80000001,48,60,24,20,24,null,null,null,null,null,null,null,null,null,null,null,2000,6800]
[13,"Ք.Գավառ  2-Միկրո 48շ.","Ա.Ձ.   Մաթևոսյան   Արթուր",173091952.19999999,60,24,24,8,24,null,null,null,null,null,null,null,null,null,null,null,2000,3632]
[14,"Ք.Գավառ  2-Միկրո 48շ.","Ա.Ձ.   Մաթևոսյան   Արթուր",173091952.19999999,60,24,24,8,24,null,null,null,null,null,null,null,null,null,null,null,2000,3392]
[15,"Ք.Գավառ  2-Միկրո 48շ.","Ա.Ձ.   Մաթևոսյան   Արթուր",173091952.19999999,60,24,24,8,24,null,null,null,null,null,null,null,null,null,null,null,2000,3392]
[16,"Ք.Գավառ  2-Միկրո 48շ.","Ա.Ձ.   Մաթևոսյան   Արթուր",173091952.19999999,60,24,24,8,24,null,null,null,null,null,null,null,null,null,null,null,2000,3392]
[17,"Ք.Գավառ  2-Միկրո 48շ.","Ա.Ձ.   Մաթևոսյան   Արթուր",173091952.19999999,60,24,24,8,24,null,null,null,null,null,null,null,null,null,null,null,2000,3392]
[18,"Ք.Գավառ  2-Միկրո 48շ.","Ա.Ձ.   Մաթևոսյան   Արթուր",173091952.19999999,60,24,24,8,24,null,null,null,null,null,null,null,null,null,null,null,2000,3392]
[19,"Ք.Գավառ  2-Միկրո 48շ.","Ա.Ձ.   Մաթևոսյան   Արթուր",173091952.19999999,60,24,24,8,24,null,null,null,null,null,null,null,null,null,null,null,2000,3392,null,null,null,null,null,null,"тан-0,5","kbo",120,10724]
[20,"Ք.Գավառ  2-Միկրո 48շ.","Ա.Ձ.   Մաթևոսյան   Արթուր",173091952.19999999,60,24,24,8,24,null,null,null,null,null,null,null,null,null,null,null,2000,3392]
[21,"Ք.Գավառ  2-Միկրո 48շ.","Ա.Ձ.   Մաթևոսյան   Արթուր",173091952.19999999,60,24,24,8,24,null,null,null,null,null,null,null,null,null,null,null,2000,3392]
[22,"Ք.Գավառ  2-Միկրո 48շ.","Ա.Ձ.   Մաթևոսյան   Արթուր",173091952.19999999,60,24,24,8,24,null,null,null,null,null,null,null,null,null,null,null,2000,3392]
[23,"Ք.Գավառ  2-Միկրո 48շ.","Ա.Ձ.   Մաթևոսյան   Արթուր",173091952.19999999,60,24,24,8,24,null,null,null,null,null,null,null,null,null,null,null,2000,3392]
[24,"Ք.Գավառ  2-Միկրո 48շ.","Ա.Ձ.   Մաթևոսյան   Արթուր",173091952.19999999,60,24,24,8,24,null,null,null,null,null,null,null,null,null,null,null,2000,3392]
[25,"Ք.Գավառ  2-Միկրո 48շ.","Ա.Ձ.   Մաթևոսյան   Արթուր",173091952.19999999,60,24,24,8,24,null,null,null,null,null,null,null,null,null,null,null,2000,3392]
[26,"Ք.Գավառ  2-Միկրո 48շ.","Ա.Ձ.   Մաթևոսյան   Արթուր",173091952.19999999,60,24,24,8,24,null,null,null,null,null,null,null,null,null,null,null,2000,3392]
[27,"Ք.Գավառ  2-Միկրո 48շ.","Ա.Ձ.   Մաթևոսյան   Արթուր",173091952.19999999,60,24,24,8,24,null,null,null,null,null,null,null,null,null,null,null,2000,3392]
[28,"Ք.Գավառ  2-Միկրո 48շ.","Ա.Ձ.   Մաթևոսյան   Արթուր",173091952.19999999,60,24,24,8,24,null,null,null,null,null,null,null,null,null,null,null,2000,3392]
[29,"Ք.Գավառ  2-Միկրո 48շ.","Ա.Ձ.   Մաթևոսյան   Արթուր",173091952.19999999,60,24,24,8,24,null,null,null,null,null,null,null,null,null,null,null,2000,3392]
[30,"Ք.Գավառ  2-Միկրո 48շ.","Ա.Ձ.   Մաթևոսյան   Արթուր",173091952.19999999,60,24,24,8,24,null,null,null,null,null,null,null,null,null,null,null,2000,3392]
[31,"Ք.Գավառ  2-Միկրո 48շ.","Ա.Ձ.   Մաթևոսյան   Արթուր",173091952.19999999,60,24,24,8,24,null,null,null,null,null,null,null,null,null,null,null,2000,3392]
[32,"Ք.Գավառ  2-Միկրո 48շ.","Ա.Ձ.   Մաթևոսյան   Արթուր",173091952.19999999,60,24,24,8,24,null,null,null,null,null,null,null,null,null,null,null,2000,3392]
[33,"Ք.Գավառ  2-Միկրո 48շ.","Ա.Ձ.   Մաթևոսյան   Արթուր",173091952.19999999,60,24,24,8,24,null,null,null,null,null,null,null,null,null,null,null,2000,3392]
[34,"Ք.Գավառ  2-Միկրո 48շ.","Ա.Ձ.   Մաթևոսյան   Արթուր",173091952.19999999,60,24,24,8,24,null,null,null,null,null,null,null,null,null,null,null,2000,3392]
[35,"Ք.Գավառ  2-Միկրո 48շ.","Ա.Ձ.   Մաթևոսյան   Արթուր",173091952.19999999,60,24,24,8,24,null,null,null,null,null,null,null,null,null,null,null,2000,3392]
[36,"Ք.Գավառ  2-Միկրո 48շ.","Ա.Ձ.   Մաթևոսյան   Արթուր",173091952.19999999,60,24,24,8,24,null,null,null,null,null,null,null,null,null,null,null,2000,3392]
[37,"Ք.Գավառ  2-Միկրո 48շ.","Ա.Ձ.   Մաթևոսյան   Արթուր",173091952.19999999,60,24,24,8,24,null,null,null,null,null,null,null,null,null,null,null,2000,3392]
[38,"Ք.Գավառ  2-Միկրո 48շ.","Ա.Ձ.   Մաթևոսյան   Արթուր",173091952.19999999,60,24,24,8,24,null,null,null,null,null,null,null,null,null,null,null,2000,3392]
[39,"Ք.Գավառ  2-Միկրո 48շ.","Ա.Ձ.   Մաթևոսյան   Արթուր",173091952.19999999,60,24,24,8,24,null,null,null,null,null,null,null,null,null,null,null,2000,3392]
[40,"Ք.Գավառ  2-Միկրո 48շ.","Ա.Ձ.   Մաթևոսյան   Արթուր",173091952.19999999,60,24,24,8,24,null,null,null,null,null,null,null,null,null,null,null,2000,3392]
[41,"Ք.Գավառ  2-Միկրո 48շ.","Ա.Ձ.   Մաթևոսյան   Արթուր",173091952.19999999,60,24,24,8,24,null,null,null,null,null,null,null,null,null,null,null,2000,3392]
[42,"Ք.Գավառ  2-Միկրո 48շ.","Ա.Ձ.   Մաթևոսյան   Արթուր",173091952.19999999,60,24,24,8,24,null,null,null,null,null,null,null,null,null,null,null,2000,3392]
[43,"Ք.Գավառ  2-Միկրո 48շ.","Ա.Ձ.   Մաթևոսյան   Արթուր",173091952.19999999,60,24,24,8,24,null,null,null,null,null,null,null,null,null,null,null,2000,3392]
[44,"Ք.Գավառ  2-Միկրո 48շ.","Ա.Ձ.   Մաթևոսյան   Արթուր",173091952.19999999,60,24,24,8,24,null,null,null,null,null,null,null,null,null,null,null,2000,3392]
[45,"Ք.Գավառ  2-Միկրո 48շ.","Ա.Ձ.   Մաթևոսյան   Արթուր",173091952.19999999,60,24,24,8,24,null,null,null,null,null,null,null,null,null,null,null,2000,3392]
[46,"Ք.Գավառ  2-Միկրո 48շ.","Ա.Ձ.   Մաթևոսյան   Արթուր",173091952.19999999,60,24,24,8,24,null,null,null,null,null,null,null,null,null,null,null,2000,3392]
[47,"Ք.Գավառ  2-Միկրո 48շ.","Ա.Ձ.   Մաթևոսյան   Արթուր",173091952.19999999,60,24,24,8,24,null,null,null,null,null,null,null,null,null,null,null,2000,3392]
[48,"Ք.Գավառ  2-Միկրո 48շ.","Ա.Ձ.   Մաթևոսյան   Արթուր",173091952.19999999,60,24,24,8,24,null,null,null,null,null,null,null,null,null,null,null,2000,3392]
[49,"Ք.Գավառ  2-Միկրո 48շ.","Ա.Ձ.   Մաթևոսյան   Արթուր",173091952.19999999,60,24,24,8,24,null,null,null,null,null,null,null,null,null,null,null,2000,3392]
[50,"Ք.Գավառ  2-Միկրո 48շ.","Ա.Ձ.   Մաթևոսյան   Արթուր",173091952.19999999,60,24,24,8,24,null,null,null,null,null,null,null,null,null,null,null,2000,3392]
[51,"Ք.Գավառ  2-Միկրո 48շ.","Ա.Ձ.   Մաթևոսյան   Արթուր",173091952.19999999,60,24,24,8,24,null,null,null,null,null,null,null,null,null,null,null,2000,3392]
[52,"Ք.Գավառ  2-Միկրո 48շ.","Ա.Ձ.   Մաթևոսյան   Արթուր",173091952.19999999,60,24,24,8,24,null,null,null,null,null,null,null,null,null,null,null,2000,3392]
[53,"Ք.Գավառ  2-Միկրո 48շ.","Ա.Ձ.   Մաթևոսյան   Արթուր",173091952.19999999,60,24,24,8,24,null,null,null,null,null,null,null,null,null,null,null,2000,3392]
[54,"Ք.Գավառ  2-Միկրո 48շ.","Ա.Ձ.   Մաթևոսյան   Արթուր",173091952.19999999,60,24,24,8,24,null,null,null,null,null,null,null,null,null,null,null,2000,3392]
[55,"Ք.Գավառ  2-Միկրո 48շ.","Ա.Ձ.   Մաթևոսյան   Արթուր",173091952.19999999,60,24,24,8,24,null,null,null,null,null,null,null,null,null,null,null,2000,3392]
[56,"Ք.Գավառ  2-Միկրո 48շ.","Ա.Ձ.   Մաթևոսյան   Արթուր",173091952.19999999,60,24,24,8,24,null,null,null,null,null,null,null,null,null,null,null,2000,3392]
[57,"Ք.Գավառ  2-Միկրո 48շ.","Ա.Ձ.   Մաթևոսյան   Արթուր",173091952.19999999,60,24,24,8,24,null,null,null,null,null,null,null,null,null,null,null,2000,3392]
[58,"Ք.Գավառ  2-Միկրո 48շ.","Ա.Ձ.   Մաթևոսյան   Արթուր",173091952.19999999,60,24,24,8,24,null,null,null,null,null,null,null,null,null,null,null,2000,3392]
[59,"Ք.Գավառ  2-Միկրո 48շ.","Ա.Ձ.   Մաթևոսյան   Արթուր",173091952.19999999,60,24,24,8,24,null,null,null,null,null,null,null,null,null,null,null,2000,3392]
[60,"Ք.Գավառ  2-Միկրո 48շ.","Ա.Ձ.   Մաթևոսյան   Արթուր",173091952.19999999,60,24,24,8,24,null,null,null,null,null,null,null,null,null,null,null,2000,3392]

{"sheet":"Варденис","index":6,"n_rows":65,"n_cols":32,"rows_kept":65,"cut":false,"hidden":false,"merged":[]}
[]
[]
[null,"адресс","имя  фамиля",null,"лим-1,5","лим-0,5","тан-0,5","натур-сок  2","натур-сок  0.25","халодны  кофе","малоты  кофе  кг.","малоты  кофе  Джови  шт.","малоты  кофе  Лидер  шт.","куруруз","чипси  80  гр.","чипси  200  гр.","Ади-Буди","Соска","Бочка","Ведро"]
[null,"Варденис","Արսեն  Կիրակոսյան",null,null,null,null,null,null,null,null,null,null,null,null,null,null,null,null,null,"скидка","сумма"]
[null,null,null,"ՀՎՀՀ",80,60,80,500,125]
[1,"Ք.Վարդենիս  թաղ 26շ.","Ա.Ձ.   Մաթևոսյան   Արթուր",42256545,8,null,null,6,10,null,null,null,null,null,null,null,null,null,null,null,2000,{"$f":"SUMPRODUCT($E$5:$T$5,E6:T6)-U6","v":2890}]
[2,"Ք.Վարդենիս  թաղ 38շ.","Ա.Ձ.   Մաթևոսյան   Արմեն",35658975,null,24,80,null,null,null,null,null,null,null,null,null,null,null,null,null,2000,{"$f":"SUMPRODUCT($E$5:$T$5,E7:T7)-U7","v":5840}]
[3,"Ք.Վարդենիս  թաղ 40շ.","Ա.Ձ.   Սարգսյան  Կարեն",25854565,72,48,24,8,24,null,null,null,null,null,null,null,null,null,null,null,2000,15560]
[4,"Ք.Վարդենիս  4-թաղ 2շ.","Ա.Ձ.   Կարապետյան  Մարի",85456523,null,24,24,8,24,null,null,null,null,null,null,null,null,null,null,null,2000,8360]
[5,"Ք.Վարդենիս  4-թաղ 20շ.","Ա.Ձ.   Մաթևոսյան   Արթուր",77255533,60,null,null,16,24,null,null,null,null,null,null,null,null,null,null,null,2000,13800]
[6,"Ք.Վարդենիս  4-թաղ 30շ.","Ա.Ձ.   Մաթևոսյան   Արթուր",89235085,48,24,24,8,60,null,null,null,null,null,null,null,null,null,null,null,2000,16700]
[7,"Ք.Վարդենիս  4-թաղ 36շ.","abo",101214637.8,50,24,24,null,24,null,null,null,null,null,null,null,null,null,null,null,2000,8360]
[8,"Ք.Վարդենիս  4-թաղ 45շ.","kbo",113194190.2,120,24,60,8,48,null,null,null,null,null,null,null,null,null,null,null,2000,23840]
[9,"Ք.Վարդենիս  2-թաղ 16շ.","mbo",125173742.59999999,null,null,null,20,70,null,null,null,null,null,null,null,null,null,null,null,2000,16750]
[10,"Ք.Վարդենիս  2-թաղ 20շ.","Ա.Ձ.   Մաթևոսյան   Արթուր",137153295,72,48,24,20,24,null,null,null,null,null,null,null,null,null,null,null,2000,21560]
[11,"Ք.Վարդենիս  2-թաղ 26շ.","Ա.Ձ.   Մաթևոսյան   Արթուր",149132847.40000001,60,24,120,8,60,null,null,null,null,null,null,null,null,null,null,null,2000,25340]
[12,"Ք.Վարդենիս  2-թաղ 46շ.","Ա.Ձ.   Մաթևոսյան   Արթուր",161112399.80000001,48,60,24,20,24,null,null,null,null,null,null,null,null,null,null,null,2000,20360]
[13,"Ք.Վարդենիս  2-թաղ 48շ.","Ա.Ձ.   Մաթևոսյան   Արթուր",173091952.19999999,60,24,24,8,24,null,null,null,null,null,null,null,null,null,null,null,2000,13160]
[14,"Ք.Վարդենիս  2-թաղ 48շ.","Ա.Ձ.   Մաթևոսյան   Արթուր",173091952.19999999,60,24,24,8,24,null,null,null,null,null,null,null,null,null,null,null,2000,13160]
[15,"Ք.Վարդենիս  2-թաղ 48շ.","Ա.Ձ.   Մաթևոսյան   Արթուր",173091952.19999999,60,24,24,8,24,null,null,null,null,null,null,null,null,null,null,null,2000,13160]
[16,"Ք.Վարդենիս  2-թաղ 48շ.","Ա.Ձ.   Մաթևոսյան   Արթուր",173091952.19999999,60,24,24,8,24,null,null,null,null,null,null,null,null,null,null,null,2000,13160]
[17,"Ք.Վարդենիս  2-թաղ 48շ.","Ա.Ձ.   Մաթևոսյան   Արթուր",173091952.19999999,60,24,24,8,24,null,null,null,null,null,null,null,null,null,null,null,2000,13160]
[18,"Ք.Վարդենիս  2-թաղ 48շ.","Ա.Ձ.   Մաթևոսյան   Արթուր",173091952.19999999,60,24,24,8,24,null,null,null,null,null,null,null,null,null,null,null,2000,13160]
[19,"Ք.Վարդենիս  2-թաղ 48շ.","Ա.Ձ.   Մաթևոսյան   Արթուր",173091952.19999999,60,24,24,8,24,null,null,null,null,null,null,null,null,null,null,null,2000,13160,null,null,null,null,null,null,"тан-0,5","kbo",120,10724]
[20,"Ք.Վարդենիս  2-թաղ 48շ.","Ա.Ձ.   Մաթևոսյան   Արթուր",173091952.19999999,60,24,24,8,24,null,null,null,null,null,null,null,null,null,null,null,2000,13160]
[21,"Ք.Վարդենիս  2-թաղ 48շ.","Ա.Ձ.   Մաթևոսյան   Արթուր",173091952.19999999,60,24,24,8,24,null,null,null,null,null,null,null,null,null,null,null,2000,13160]
[22,"Ք.Վարդենիս  2-թաղ 48շ.","Ա.Ձ.   Մաթևոսյան   Արթուր",173091952.19999999,60,24,24,8,24,null,null,null,null,null,null,null,null,null,null,null,2000,13160]
[23,"Ք.Վարդենիս  2-թաղ 48շ.","Ա.Ձ.   Մաթևոսյան   Արթուր",173091952.19999999,60,24,24,8,24,null,null,null,null,null,null,null,null,null,null,null,2000,13160]
[24,"Ք.Վարդենիս  2-թաղ 48շ.","Ա.Ձ.   Մաթևոսյան   Արթուր",173091952.19999999,60,24,24,8,24,null,null,null,null,null,null,null,null,null,null,null,2000,13160]
[25,"Ք.Վարդենիս  2-թաղ 48շ.","Ա.Ձ.   Մաթևոսյան   Արթուր",173091952.19999999,60,24,24,8,24,null,null,null,null,null,null,null,null,null,null,null,2000,13160]
[26,"Ք.Վարդենիս  2-թաղ 48շ.","Ա.Ձ.   Մաթևոսյան   Արթուր",173091952.19999999,60,24,24,8,24,null,null,null,null,null,null,null,null,null,null,null,2000,13160]
[27,"Ք.Վարդենիս  2-թաղ 48շ.","Ա.Ձ.   Մաթևոսյան   Արթուր",173091952.19999999,60,24,24,8,24,null,null,null,null,null,null,null,null,null,null,null,2000,13160]
[28,"Ք.Վարդենիս  2-թաղ 48շ.","Ա.Ձ.   Մաթևոսյան   Արթուր",173091952.19999999,60,24,24,8,24,null,null,null,null,null,null,null,null,null,null,null,2000,13160]
[29,"Ք.Վարդենիս  2-թաղ 48շ.","Ա.Ձ.   Մաթևոսյան   Արթուր",173091952.19999999,60,24,24,8,24,null,null,null,null,null,null,null,null,null,null,null,2000,13160]
[30,"Ք.Վարդենիս  2-թաղ 48շ.","Ա.Ձ.   Մաթևոսյան   Արթուր",173091952.19999999,60,24,24,8,24,null,null,null,null,null,null,null,null,null,null,null,2000,13160]
[31,"Ք.Վարդենիս  2-թաղ 48շ.","Ա.Ձ.   Մաթևոսյան   Արթուր",173091952.19999999,60,24,24,8,24,null,null,null,null,null,null,null,null,null,null,null,2000,13160]
[32,"Ք.Վարդենիս  2-թաղ 48շ.","Ա.Ձ.   Մաթևոսյան   Արթուր",173091952.19999999,60,24,24,8,24,null,null,null,null,null,null,null,null,null,null,null,2000,13160]
[33,"Ք.Վարդենիս  2-թաղ 48շ.","Ա.Ձ.   Մաթևոսյան   Արթուր",173091952.19999999,60,24,24,8,24,null,null,null,null,null,null,null,null,null,null,null,2000,13160]
[34,"Ք.Վարդենիս  2-թաղ 48շ.","Ա.Ձ.   Մաթևոսյան   Արթուր",173091952.19999999,60,24,24,8,24,null,null,null,null,null,null,null,null,null,null,null,2000,13160]
[35,"Ք.Վարդենիս  2-թաղ 48շ.","Ա.Ձ.   Մաթևոսյան   Արթուր",173091952.19999999,60,24,24,8,24,null,null,null,null,null,null,null,null,null,null,null,2000,13160]
[36,"Ք.Վարդենիս  2-թաղ 48շ.","Ա.Ձ.   Մաթևոսյան   Արթուր",173091952.19999999,60,24,24,8,24,null,null,null,null,null,null,null,null,null,null,null,2000,13160]
[37,"Ք.Վարդենիս  2-թաղ 48շ.","Ա.Ձ.   Մաթևոսյան   Արթուր",173091952.19999999,60,24,24,8,24,null,null,null,null,null,null,null,null,null,null,null,2000,13160]
[38,"Ք.Վարդենիս  2-թաղ 48շ.","Ա.Ձ.   Մաթևոսյան   Արթուր",173091952.19999999,60,24,24,8,24,null,null,null,null,null,null,null,null,null,null,null,2000,13160]
[39,"Ք.Վարդենիս  2-թաղ 48շ.","Ա.Ձ.   Մաթևոսյան   Արթուր",173091952.19999999,60,24,24,8,24,null,null,null,null,null,null,null,null,null,null,null,2000,13160]
[40,"Ք.Վարդենիս  2-թաղ 48շ.","Ա.Ձ.   Մաթևոսյան   Արթուր",173091952.19999999,60,24,24,8,24,null,null,null,null,null,null,null,null,null,null,null,2000,13160]
[41,"Ք.Վարդենիս  2-թաղ 48շ.","Ա.Ձ.   Մաթևոսյան   Արթուր",173091952.19999999,60,24,24,8,24,null,null,null,null,null,null,null,null,null,null,null,2000,13160]
[42,"Ք.Վարդենիս  2-թաղ 48շ.","Ա.Ձ.   Մաթևոսյան   Արթուր",173091952.19999999,60,24,24,8,24,null,null,null,null,null,null,null,null,null,null,null,2000,13160]
[43,"Ք.Վարդենիս  2-թաղ 48շ.","Ա.Ձ.   Մաթևոսյան   Արթուր",173091952.19999999,60,24,24,8,24,null,null,null,null,null,null,null,null,null,null,null,2000,13160]
[44,"Ք.Վարդենիս  2-թաղ 48շ.","Ա.Ձ.   Մաթևոսյան   Արթուր",173091952.19999999,60,24,24,8,24,null,null,null,null,null,null,null,null,null,null,null,2000,13160]
[45,"Ք.Վարդենիս  2-թաղ 48շ.","Ա.Ձ.   Մաթևոսյան   Արթուր",173091952.19999999,60,24,24,8,24,null,null,null,null,null,null,null,null,null,null,null,2000,13160]
[46,"Ք.Վարդենիս  2-թաղ 48շ.","Ա.Ձ.   Մաթևոսյան   Արթուր",173091952.19999999,60,24,24,8,24,null,null,null,null,null,null,null,null,null,null,null,2000,13160]
[47,"Ք.Վարդենիս  2-թաղ 48շ.","Ա.Ձ.   Մաթևոսյան   Արթուր",173091952.19999999,60,24,24,8,24,null,null,null,null,null,null,null,null,null,null,null,2000,13160]
[48,"Ք.Վարդենիս  2-թաղ 48շ.","Ա.Ձ.   Մաթևոսյան   Արթուր",173091952.19999999,60,24,24,8,24,null,null,null,null,null,null,null,null,null,null,null,2000,13160]
[49,"Ք.Վարդենիս  2-թաղ 48շ.","Ա.Ձ.   Մաթևոսյան   Արթուր",173091952.19999999,60,24,24,8,24,null,null,null,null,null,null,null,null,null,null,null,2000,13160]
[50,"Ք.Վարդենիս  2-թաղ 48շ.","Ա.Ձ.   Մաթևոսյան   Արթուր",173091952.19999999,60,24,24,8,24,null,null,null,null,null,null,null,null,null,null,null,2000,13160]
[51,"Ք.Վարդենիս  2-թաղ 48շ.","Ա.Ձ.   Մաթևոսյան   Արթուր",173091952.19999999,60,24,24,8,24,null,null,null,null,null,null,null,null,null,null,null,2000,13160]
[52,"Ք.Վարդենիս  2-թաղ 48շ.","Ա.Ձ.   Մաթևոսյան   Արթուր",173091952.19999999,60,24,24,8,24,null,null,null,null,null,null,null,null,null,null,null,2000,13160]
[53,"Ք.Վարդենիս  2-թաղ 48շ.","Ա.Ձ.   Մաթևոսյան   Արթուր",173091952.19999999,60,24,24,8,24,null,null,null,null,null,null,null,null,null,null,null,2000,13160]
[54,"Ք.Վարդենիս  2-թաղ 48շ.","Ա.Ձ.   Մաթևոսյան   Արթուր",173091952.19999999,60,24,24,8,24,null,null,null,null,null,null,null,null,null,null,null,2000,13160]
[55,"Ք.Վարդենիս  2-թաղ 48շ.","Ա.Ձ.   Մաթևոսյան   Արթուր",173091952.19999999,60,24,24,8,24,null,null,null,null,null,null,null,null,null,null,null,2000,13160]
[56,"Ք.Վարդենիս  2-թաղ 48շ.","Ա.Ձ.   Մաթևոսյան   Արթուր",173091952.19999999,60,24,24,8,24,null,null,null,null,null,null,null,null,null,null,null,2000,13160]
[57,"Ք.Վարդենիս  2-թաղ 48շ.","Ա.Ձ.   Մաթևոսյան   Արթուր",173091952.19999999,60,24,24,8,24,null,null,null,null,null,null,null,null,null,null,null,2000,13160]
[58,"Ք.Վարդենիս  2-թաղ 48շ.","Ա.Ձ.   Մաթևոսյան   Արթուր",173091952.19999999,60,24,24,8,24,null,null,null,null,null,null,null,null,null,null,null,2000,13160]
[59,"Ք.Վարդենիս  2-թաղ 48շ.","Ա.Ձ.   Մաթևոսյան   Արթուր",173091952.19999999,60,24,24,8,24,null,null,null,null,null,null,null,null,null,null,null,2000,13160]
[60,"Ք.Վարդենիս  2-թաղ 48շ.","Ա.Ձ.   Մաթևոսյան   Արթուր",173091952.19999999,60,24,24,8,24,null,null,null,null,null,null,null,null,null,null,null,2000,13160]